{"text_format":"3","workbook":"xlsx","n_sheets":4,"sheets":["Спецификация","Форма ввода","Инструкция по заполнению","Справочник"],"not_rendered":{"macros":1,"defined_names":12},"read":"whole","date_system":"1900"}

{"sheet":"Спецификация","index":0,"n_rows":151,"n_cols":16,"rows_kept":151,"merged":[[0,0,0,1],[0,10,0,15],[1,10,1,15],[3,12,3,15],[4,0,4,15],[5,0,5,15],[6,1,6,15],[7,1,7,15],[27,1,27,15],[28,1,28,2],[28,3,28,5],[28,6,28,10],[29,1,29,2],[29,3,29,5],[29,6,29,10],[30,1,30,2],[30,3,30,5],[30,6,30,10],[31,6,31,10],[35,1,35,15],[36,1,36,15],[37,1,37,15],[40,1,40,15],[42,1,42,15],[43,2,43,15],[44,1,44,15],[45,2,45,15],[46,1,46,15],[47,1,47,15],[48,1,48,15],[49,1,49,15],[50,2,50,15],[51,1,51,15],[52,1,52,15],[53,1,53,15],[54,1,54,15],[55,1,55,15],[56,1,56,15],[57,1,57,15],[58,1,58,15],[59,1,59,15],[77,1,77,15],[95,1,95,15],[97,1,97,15],[98,1,98,15],[99,1,99,15],[100,1,100,15],[101,1,101,15],[102,1,102,15],[103,1,103,15],[104,1,104,2],[105,1,105,15],[106,1,106,2],[107,1,107,15],[108,1,108,15],[109,1,109,15],[110,1,110,15],[111,1,111,15],[112,1,112,15],[113,1,113,15],[114,1,114,15],[115,1,115,15],[116,1,116,15],[117,1,117,15],[118,1,118,15],[119,1,119,15],[120,1,120,15],[121,1,121,15],[122,1,122,15],[123,1,123,15],[124,1,124,15],[125,1,125,15],[126,4,126,10],[127,4,127,10],[128,4,128,10],[129,1,129,10],[130,1,130,15],[131,1,131,15],[132,1,132,15],[133,1,133,15],[135,1,135,15],[136,0,136,15],[138,1,138,5],[138,6,138,15],[139,1,139,5],[139,6,139,15],[140,1,140,5],[140,7,140,14],[141,1,141,5],[141,7,141,14],[143,1,143,5],[143,7,143,14],[144,1,144,5],[144,7,144,14],[145,1,145,5],[145,7,145,14],[146,1,146,5],[146,7,146,14],[147,1,147,5],[147,7,147,14],[148,1,148,5],[148,7,148,15],[149,1,149,5],[149,7,149,15]]}
[{"$f":"IF('Форма ввода'!C8>0,'Форма ввода'!C8,\"\")","v":""},{"$nulls":9},{"$f":"CONCATENATE(\"Спецификация № \",'Форма ввода'!C6,\" от \",IF('Форма ввода'!C7=\"\",\"\",TEXT(DAY('Форма ввода'!C7),\"00\")&\" \"&VLOOKUP(MONTH('Форма ввода'!C7),Справочник!$D$2:$E$13,2,0)&\" \"&YEAR('Форма ввода'!C7)&\" г.\"))","v":"Спецификация №  от "}]
[{"$nulls":10},{"$f":"CONCATENATE(\"к Договору поставки № \",'Форма ввода'!C4,\" от \",IF('Форма ввода'!C5=\"\",\"\",TEXT(DAY('Форма ввода'!C5),\"00\")&\" \"&VLOOKUP(MONTH('Форма ввода'!C5),Справочник!$D$2:$E$13,2,0)&\" \"&YEAR('Форма ввода'!C5)&\" года (далее - Договор)\"))","v":"к Договору поставки №  от "}]
[{"$nulls":10},{"$f":"IF(AND('Форма ввода'!C9=\"\",'Форма ввода'!C10=\"\"),\"\",CONCATENATE(\"№ ДД: \",'Форма ввода'!C9,\"; № PO: \",'Форма ввода'!C10))","v":""}]
[]
[{"$f":"CONCATENATE(VLOOKUP('Форма ввода'!C11,Справочник!A2:C42,3,),\"(\",VLOOKUP('Форма ввода'!C11,Справочник!A2:C42,2,),\"), именуемое в дальнейшем «Покупатель», с одной стороны, и\")","v":"(Выпадающий список)((Выпадающий список)), именуемое в дальнейшем «Покупатель», с одной стороны, и"}]
[{"$f":"CONCATENATE('Форма ввода'!C12,\" (\",'Форма ввода'!C13,\"), именуемое в дальнейшем «Поставщик», с другой стороны, вместе именуемые в дальнейшем «Стороны», договорились о нижеследующем:\")","v":" (), именуемое в дальнейшем «Поставщик», с другой стороны, вместе именуемые в дальнейшем «Стороны», договорились о нижеследующем:"}]
["1.","В соответствии с пунктом 1.1 Договора Поставщик обязуется поставить Покупателю следующий Товар: "]
[]
["№ п/п","Наименование Товара Поставщика","ГОСТ, ТУ, технические характеристики","Наименование Товара для отражения в учетных системах Покупателя","Код АСВ НСИ","№ техн. поз.","Ед. изм.","Производитель, Страна происхождения","Кол-во",{"$f":"CONCATENATE(\"Цена за единицу измерения без НДС, \",'Форма ввода'!$C$14)","v":"Цена за единицу измерения без НДС, (Выпадающий список)"},{"$f":"CONCATENATE(\"Стоимость без учета НДС, \",'Форма ввода'!$C$14)","v":"Стоимость без учета НДС, (Выпадающий список)"},"Ставка НДС,%",{"$f":"CONCATENATE(\"Сумма НДС, \",'Форма ввода'!$C$14)","v":"Сумма НДС, (Выпадающий список)"},{"$f":"CONCATENATE(\"Стоимость с учетом НДС, \",'Форма ввода'!$C$14)","v":"Стоимость с учетом НДС, (Выпадающий список)"},"Грузополучатель",{"$f":"IF(C51=\"в соответствии с таблицей п. 1 настоящей Спецификации.\",\"Cрок поставки\",\" \")","v":" "}]
[1,{"$nulls":9},{"$f":"ROUND(I10*J10,2)","v":{"v":0,"d":"0.00"}},null,{"$f":"IF(L10=\"Без НДС\",0,ROUND(K10*L10,2))","v":{"v":0,"d":"0.00"}},{"$f":"M10+K10","v":{"v":0,"d":"0.00"}},"(Выпадающий список)"]
[2,{"$nulls":9},{"$f":"ROUND(I11*J11,2)","v":{"v":0,"d":"0.00"}},null,{"$f":"IF(L11=\"Без НДС\",0,ROUND(K11*L11,2))","v":{"v":0,"d":"0.00"}},{"$f":"M11+K11","v":{"v":0,"d":"0.00"}},"(Выпадающий список)"]
[3,{"$nulls":9},{"$f":"ROUND(I12*J12,2)","v":{"v":0,"d":"0.00"}},null,{"$f":"IF(L12=\"Без НДС\",0,ROUND(K12*L12,2))","v":{"v":0,"d":"0.00"}},{"$f":"M12+K12","v":{"v":0,"d":"0.00"}},"(Выпадающий список)"]
[4,{"$nulls":9},{"v":0,"d":"0.00"},null,{"v":0,"d":"0.00"},{"v":0,"d":"0.00"},"(Выпадающий список)"]
[5,{"$nulls":9},{"v":0,"d":"0.00"},null,{"v":0,"d":"0.00"},{"v":0,"d":"0.00"},"(Выпадающий список)"]
[6,{"$nulls":9},{"$f":"ROUND(I15*J15,2)","v":{"v":0,"d":"0.00"}},null,{"$f":"IF(L15=\"Без НДС\",0,ROUND(K15*L15,2))","v":{"v":0,"d":"0.00"}},{"$f":"M15+K15","v":{"v":0,"d":"0.00"}},"(Выпадающий список)"]
[7,{"$nulls":9},{"v":0,"d":"0.00"},null,{"v":0,"d":"0.00"},{"v":0,"d":"0.00"},"(Выпадающий список)"]
[8,{"$nulls":9},{"v":0,"d":"0.00"},null,{"v":0,"d":"0.00"},{"v":0,"d":"0.00"},"(Выпадающий список)"]
[9,{"$nulls":9},{"v":0,"d":"0.00"},null,{"v":0,"d":"0.00"},{"v":0,"d":"0.00"},"(Выпадающий список)"]
[10,{"$nulls":9},{"v":0,"d":"0.00"},null,{"v":0,"d":"0.00"},{"v":0,"d":"0.00"},"(Выпадающий список)"]
[11,{"$nulls":9},{"v":0,"d":"0.00"},null,{"v":0,"d":"0.00"},{"v":0,"d":"0.00"},"(Выпадающий список)"]
[12,{"$nulls":9},{"v":0,"d":"0.00"},null,{"v":0,"d":"0.00"},{"v":0,"d":"0.00"},"(Выпадающий список)"]
[13,{"$nulls":9},{"v":0,"d":"0.00"},null,{"v":0,"d":"0.00"},{"v":0,"d":"0.00"},"(Выпадающий список)"]
[14,{"$nulls":9},{"v":0,"d":"0.00"},null,{"v":0,"d":"0.00"},{"v":0,"d":"0.00"},"(Выпадающий список)"]
[15,{"$nulls":9},{"v":0,"d":"0.00"},null,{"v":0,"d":"0.00"},{"v":0,"d":"0.00"},"(Выпадающий список)"]
["ВСЕГО",{"$nulls":7},{"$f":"SUM(I10:I24)","v":0},null,{"$f":"SUM(K10:K24)","v":{"v":0,"d":"0.00"}},null,{"$f":"SUM(M10:M24)","v":{"v":0,"d":"0.00"}},{"$f":"M25+K25","v":{"v":0,"d":"0.00"}}]
[{"$f":"CONCATENATE(\"Итого на сумму: \"&FirstLetter(CurText(ROUND(N25,2),'Форма ввода'!C14)))","v":{"$error":"#NAME?"}}]
[{"$f":"CONCATENATE(\"в том числе НДС:  \"&FirstLetter(CurText(ROUND(M25,2),'Форма ввода'!C14)))","v":{"$error":"#NAME?"}}]
["1.1.","В соответствии с разделом 5  Договора  Поставщик обязуется выполнить для Покупателя следующие Работы (оказать следующие Услуги) в отношении Товара, поставляемого по настоящей Спецификации:"]
["№ п/п","Наименование Работ/Услуг ",null,"Начальный и конечный сроки выполнения Работ/ оказания Услуг",null,null,{"$f":"CONCATENATE(\"Стоимость без учета НДС, \",'Форма ввода'!$C$15,\"\")","v":"Стоимость без учета НДС, (Выпадающий список)"},{"$nulls":4},"Ставка НДС,%",{"$f":"CONCATENATE(\"Сумма НДС, \",'Форма ввода'!$C$15)","v":"Сумма НДС, (Выпадающий список)"},{"$f":"CONCATENATE(\"Стоимость с учетом НДС, \",'Форма ввода'!$C$15)","v":"Стоимость с учетом НДС, (Выпадающий список)"}]
[1,null,null,"с \"__\" _____ г. по \"___\"_____ г. \nИЛИ \n__(_____) дней с даты начала выполнения Работ/оказания Услуг\n",{"$nulls":8},{"$f":"IF(ISNUMBER(G30),ROUND(G30*L30,2),\"\")","v":""},{"$f":"IF(ISNUMBER(G30),M30+G30,\"\")","v":""}]
[2,null,null,"с \"__\" _____ г. по \"___\"_____ г. \nИЛИ \n__(_____) дней с даты начала выполнения Работ/оказания Услуг\n",{"$nulls":8},{"$f":"IF(ISNUMBER(G31),ROUND(G31*L31,2),\"\")","v":""}]
["ВСЕГО",{"$nulls":5},{"$f":"SUM(G30:K31)","v":0},{"$nulls":5},{"$f":"SUM(M30:M31)","v":{"v":0,"d":"0.00"}},{"$f":"SUM(N30:N31)","v":{"v":0,"d":"0.00"}}]
[{"$f":"CONCATENATE(\"Итого на сумму: \"&FirstLetter(CurText(ROUND(N32,2),'Форма ввода'!C15)))","v":{"$error":"#NAME?"}}]
[{"$f":"CONCATENATE(\"в том числе НДС:  \"&FirstLetter(CurText(ROUND(M32,2),'Форма ввода'!C15)))","v":{"$error":"#NAME?"}}]
[]
[{"$f":"IF(B36=\"скройте строку\",\"\",\"1.2.\")","v":""},{"$f":"IF('Форма ввода'!C21=Справочник!S2,\"скройте строку\",\nIF('Форма ввода'!C25=Справочник!T2,\nCONCATENATE('Форма ввода'!C21, IF('Форма ввода'!C23=\"Да\",CONCATENATE(\" \nПорядок согласования с Покупателем документации осуществляется в соответствии с требованиями, указанными в Приложении №\",'Форма ввода'!C22,\" к настоящей Спецификации.\"),\"\")),\nCONCATENATE('Форма ввода'!C21,\"\n\",'Форма ввода'!C25,IF('Форма ввода'!C23=\"Да\",CONCATENATE(\"\nПорядок согласования с Покупателем документации осуществляется в соответствии с требованиями, указанными в Приложении №\",'Форма ввода'!C22,\" к настоящей Спецификации.\"),\"\"))))","v":"скройте строку"}]
[{"$f":"IF(B36=\"скройте строку\",\"\",\"1.2.1.\")","v":""},{"$f":"IF(B36=\"скройте строку\",\"скройте строку\",\nIF(('Форма ввода'!C21=Справочник!U4)+('Форма ввода'!C21=Справочник!U6),\"скройте строку\",\n\"Разработать необходимо следующую документацию: \"&IF('Форма ввода'!C26=\"ручное заполнение\",'Форма ввода'!C27,'Форма ввода'!C26)))","v":"скройте строку"}]
["2.",{"$f":"IF('Форма ввода'!C14='Форма ввода'!C15,CONCATENATE(\"Общая сумма настоящей Спецификации составляет: \",CHAR(10),TEXT(ROUND(SUM(N25,N32,'Форма ввода'!C19),2),\"# ##0,00\"),\" \",'Форма ввода'!C14,\" (\",FirstLetter(CurText(ROUND(SUM(N25,N32,'Форма ввода'!C19),2),'Форма ввода'!C14)),\"), в том числе НДС: \",TEXT(ROUND(SUM(M25,M32,'Форма ввода'!C19-'Форма ввода'!C19/(1+'Форма ввода'!C20)),2),\"# ##0,00\"),\" \",'Форма ввода'!C14,\" (\",FirstLetter(CurText(ROUND(SUM(M25,M32,'Форма ввода'!C19-'Форма ввода'!C19/(1+'Форма ввода'!C20)),2),'Форма ввода'!C14)),\").\"),CONCATENATE(\"Общая сумма настоящего Договора составляет: \",CHAR(10),TEXT(ROUND(SUM(N25,'Форма ввода'!C19),2),\"# ##0,00\"),\" \",'Форма ввода'!C14,\" (\",FirstLetter(CurText(ROUND(SUM(N25,'Форма ввода'!C19),2),'Форма ввода'!C14)),\"), в том числе НДС: \",TEXT(ROUND(SUM(M25,'Форма ввода'!C19-'Форма ввода'!C19/(1+'Форма ввода'!C20)),2),\"# ##0,00\"),\" \",'Форма ввода'!C14,\" (\",FirstLetter(CurText(ROUND(SUM(M25,'Форма ввода'!C19-'Форма ввода'!C19/(1+'Форма ввода'!C20)),2),'Форма ввода'!C14)),\")\",CHAR(10),TEXT(ROUND(N32,2),\"# ##0,00\"),\" \",'Форма ввода'!C15,\" (\",FirstLetter(CurText(ROUND(N32,2),'Форма ввода'!C15)),\"), в том числе НДС: \",TEXT(ROUND(M32,2),\"# ##0,00\"),\" \",'Форма ввода'!C15,\" (\",FirstLetter(CurText(ROUND(M32,2),'Форма ввода'!C15)),\").\"))","v":{"$error":"#NAME?"}}]
[]
["3.","Партия Товара:"]
[null,{"$f":"'Форма ввода'!C29","v":"(Выпадающий список)"}]
["4.","Условия поставки:"]
[null,{"$f":"IF('Форма ввода'!C32=\"Доставка до склада Покупателя (Грузополучателя), расположенного по адресу, указанному  в п.5.2.\",'Форма ввода'!C32,CONCATENATE('Форма ввода'!C32,\"\n\",'Форма ввода'!C31,\".\"))","v":"(Выпадающий список)\n."}]
["5.1.","Грузоотправитель: "]
[null,{"$f":"'Форма ввода'!C33","v":0}]
["5.2.","Грузополучатель:"]
[null,{"$f":"'Форма ввода'!C34","v":0}]
[null,{"$f":"'Форма ввода'!C35","v":0}]
[null,{"$f":"'Форма ввода'!C36","v":0}]
[]
["6.","Срок поставки:",{"$f":"'Форма ввода'!C37","v":"(Выпадающий список)"}]
["7.","Стороны согласовали следующие адреса электронной почты для направления документов и уведомлений в тех случаях, когда такой способ направления  предусмотрен Договором или настоящей спецификацией:"]
["-",{"$f":"CONCATENATE(\"со стороны Поставщика: \",'Форма ввода'!C16)","v":"со стороны Поставщика: "}]
["-",{"$f":"CONCATENATE(\"со стороны Покупателя: \",'Форма ввода'!C17)","v":"со стороны Покупателя: "}]
["8.",{"$f":"IF('Форма ввода'!C48=\"нет\",\"В случае поставки Товара  и/или передачи Документации по истечении срока, указанного в п.6  Спецификации,  Покупатель вправе, по своему усмотрению, отказаться от приемки Товара.\",\"При поставке Товара и/или передачи Документации в Срок, установленный в п.6  Спецификации, цена на Товар устанавливается в размере, указанном в  п.1  Спецификации.\"&\"\nВ случае поставки Товара  и/или передачи Документации по истечении срока, указанного в п.6  Спецификации,  Покупатель вправе по своему усмотрению: отказаться от приемки Товара, либо принять Товар на условиях, установленных в п.10 Спецификации. \"&\"\nЕсли Покупатель не отправил уведомления об отказе в сроки, установленные п.9  Спецификации, Товар считается принятым Покупателем на условиях, установленных в п.10  Спецификации.\")","v":"В случае поставки Товара  и/или передачи Документации по истечении срока, указанного в п.6  Спецификации,  Покупатель вправе, по своему усмотрению, отказаться от приемки Товара."}]
["9.",{"$f":"'Форма ввода'!C43","v":"При отказе от принятия Товара Покупатель направляет Поставщику уведомление по электронной почте, не позднее 3 (Трех) рабочих дней с момента истечения срока поставки Товара, указанного в данной Дополнительном соглашенииСпецификации. При этом Поставщик:"}]
["9.1.",{"$f":"'Форма ввода'!C45","v":"обязан в течение 2 (Двух) календарных дней с момента направления Покупателем уведомления вывезти Товар или иным образом распорядиться Товаром. Если Поставщик в указанный срок не распорядился Товаром, Покупатель вправе реализовать Товар по любой цене. Денежные средства, полученные от реализации Товара, Покупатель передает Поставщику за вычетом всех расходов, понесенных Покупателем в связи с хранением, реализацией Товара, а также в связи с простоем железнодорожного или автомобильного транспорта, арендой путей;"}]
["9.2.","несет все расходы, связанные, в том числе, с хранением отгруженного Товара, с простоем транспортных средств под разгрузкой (железнодорожного или автомобильного транспорта), возвратом Товара, другие расходы, понесенные Покупателем в связи с отказом от приемки Товара."]
["10.",{"$f":"IF('Форма ввода'!C48=\"нет\",\"Скройте пункт 10, 10.1, 10.2, 10.3.\",\"В случае, если Покупатель принял решение принять Товар, поставленный по истечении срока, установленного в п.6 настоящей Специфиации, то цена Товара, поставленного по истечении указанного срока поставки, устанавливается в размере:\")","v":"Скройте пункт 10, 10.1, 10.2, 10.3."}]
["10.1.","при поставке Товара в течение 10 (десяти) дней, следующих за датой окончания срока поставки, установленного в п.6 настоящей спецификации, цена устанавливается в размере:"]
[{"$f":"A79","v":"№ п/п"},{"$f":"B9","v":"Наименование Товара Поставщика"},"ГОСТ, ТУ, технические характеристики","Наименование Товара для отражения в учетных системах Покупателя","Код АСВ НСИ","№ техн. поз.","Ед. изм.","Производитель, Страна происхождения","Кол-во","Цена за единицу измерения без НДС, (Выпадающий список)","Стоимость без учета НДС, (Выпадающий список)","Ставка НДС,%","Сумма НДС, (Выпадающий список)","Стоимость с учетом НДС, (Выпадающий список)"]
[{"$f":"A10","v":1},0,0,0,0,0,0,0,{"v":0,"d":"0.000"},{"$f":"J10*(1-'Форма ввода'!$C$49/100)","v":{"v":0,"d":"0.00"}},{"$f":"ROUND(I62*J62,2)","v":{"v":0,"d":"0.00"}},{"$f":"L10","v":{"v":0,"d":"0%"}},{"$f":"IF(L62=\"Без НДС\",0,ROUND(K62*L62,2))","v":{"v":0,"d":"0.00"}},{"$f":"M62+K62","v":{"v":0,"d":"0.00"}}]
[{"$f":"A11","v":2},0,0,0,0,0,0,0,{"v":0,"d":"0.000"},{"$f":"J11*(1-'Форма ввода'!$C$49/100)","v":{"v":0,"d":"0.00"}},{"$f":"ROUND(I63*J63,2)","v":{"v":0,"d":"0.00"}},{"v":0,"d":"0%"},{"$f":"IF(L63=\"Без НДС\",0,ROUND(K63*L63,2))","v":{"v":0,"d":"0.00"}},{"$f":"M63+K63","v":{"v":0,"d":"0.00"}}]
[{"$f":"A12","v":3},0,0,0,0,0,0,0,{"v":0,"d":"0.000"},{"$f":"J12*(1-'Форма ввода'!$C$49/100)","v":{"v":0,"d":"0.00"}},{"$f":"ROUND(I64*J64,2)","v":{"v":0,"d":"0.00"}},{"v":0,"d":"0%"},{"$f":"IF(L64=\"Без НДС\",0,ROUND(K64*L64,2))","v":{"v":0,"d":"0.00"}},{"$f":"M64+K64","v":{"v":0,"d":"0.00"}}]
[{"$f":"A13","v":4},0,0,0,0,0,0,0,{"v":0,"d":"0.000"},{"$f":"J13*(1-'Форма ввода'!$C$49/100)","v":{"v":0,"d":"0.00"}},{"v":0,"d":"0.00"},{"v":0,"d":"0%"},{"v":0,"d":"0.00"},{"v":0,"d":"0.00"}]
[{"$f":"A14","v":5},0,0,0,0,0,0,0,{"v":0,"d":"0.000"},{"$f":"J14*(1-'Форма ввода'!$C$49/100)","v":{"v":0,"d":"0.00"}},{"v":0,"d":"0.00"},{"v":0,"d":"0%"},{"v":0,"d":"0.00"},{"v":0,"d":"0.00"}]
[{"$f":"A15","v":6},0,0,0,0,0,0,0,{"v":0,"d":"0.000"},{"$f":"J15*(1-'Форма ввода'!$C$49/100)","v":{"v":0,"d":"0.00"}},{"v":0,"d":"0.00"},{"v":0,"d":"0%"},{"v":0,"d":"0.00"},{"v":0,"d":"0.00"}]
[{"$f":"A16","v":7},0,0,0,0,0,0,0,{"v":0,"d":"0.000"},{"$f":"J16*(1-'Форма ввода'!$C$49/100)","v":{"v":0,"d":"0.00"}},{"v":0,"d":"0.00"},{"v":0,"d":"0%"},{"v":0,"d":"0.00"},{"v":0,"d":"0.00"}]
[{"$f":"A17","v":8},0,0,0,0,0,0,0,{"v":0,"d":"0.000"},{"$f":"J17*(1-'Форма ввода'!$C$49/100)","v":{"v":0,"d":"0.00"}},{"v":0,"d":"0.00"},{"v":0,"d":"0%"},{"v":0,"d":"0.00"},{"v":0,"d":"0.00"}]
[{"$f":"A18","v":9},0,0,0,0,0,0,0,{"v":0,"d":"0.000"},{"$f":"J18*(1-'Форма ввода'!$C$49/100)","v":{"v":0,"d":"0.00"}},{"v":0,"d":"0.00"},{"v":0,"d":"0%"},{"v":0,"d":"0.00"},{"v":0,"d":"0.00"}]
[{"$f":"A19","v":10},0,0,0,0,0,0,0,{"v":0,"d":"0.000"},{"$f":"J19*(1-'Форма ввода'!$C$49/100)","v":{"v":0,"d":"0.00"}},{"v":0,"d":"0.00"},{"v":0,"d":"0%"},{"v":0,"d":"0.00"},{"v":0,"d":"0.00"}]
[{"$f":"A20","v":11},0,0,0,0,0,0,0,{"v":0,"d":"0.000"},{"$f":"J20*(1-'Форма ввода'!$C$49/100)","v":{"v":0,"d":"0.00"}},{"v":0,"d":"0.00"},{"v":0,"d":"0%"},{"v":0,"d":"0.00"},{"v":0,"d":"0.00"}]
[{"$f":"A21","v":12},0,0,0,0,0,0,0,{"v":0,"d":"0.000"},{"$f":"J21*(1-'Форма ввода'!$C$49/100)","v":{"v":0,"d":"0.00"}},{"v":0,"d":"0.00"},{"v":0,"d":"0%"},{"v":0,"d":"0.00"},{"v":0,"d":"0.00"}]
[{"$f":"A22","v":13},0,0,0,0,0,0,0,{"v":0,"d":"0.000"},{"$f":"J22*(1-'Форма ввода'!$C$49/100)","v":{"v":0,"d":"0.00"}},{"v":0,"d":"0.00"},{"v":0,"d":"0%"},{"v":0,"d":"0.00"},{"v":0,"d":"0.00"}]
[{"$f":"A23","v":14},0,0,0,0,0,0,0,{"v":0,"d":"0.000"},{"$f":"J23*(1-'Форма ввода'!$C$49/100)","v":{"v":0,"d":"0.00"}},{"v":0,"d":"0.00"},{"v":0,"d":"0%"},{"v":0,"d":"0.00"},{"v":0,"d":"0.00"}]
[{"$f":"A24","v":15},0,0,0,0,0,0,0,{"v":0,"d":"0.000"},{"$f":"J24*(1-'Форма ввода'!$C$49/100)","v":{"v":0,"d":"0.00"}},{"v":0,"d":"0.00"},{"v":0,"d":"0%"},{"v":0,"d":"0.00"},{"v":0,"d":"0.00"}]
[]
["10.2.","при поставке Товара по истечении 10 (десяти) дней, следующих за датой окончания срока поставки, установленного в п.6 настоящей спецификации, цена устанавливается в размере:"]
[{"$f":"A9","v":"№ п/п"},"Наименование Товара Поставщика","ГОСТ, ТУ, технические характеристики","Наименование Товара для отражения в учетных системах Покупателя","Код АСВ НСИ","№ техн. поз.","Ед. изм.","Производитель, Страна происхождения","Кол-во","Цена за единицу измерения без НДС, (Выпадающий список)","Стоимость без учета НДС, (Выпадающий список)","Ставка НДС,%","Сумма НДС, (Выпадающий список)","Стоимость с учетом НДС, (Выпадающий список)"]
[{"$f":"A10","v":1},0,0,0,0,0,0,0,{"v":0,"d":"0.000"},{"$f":"J10*(1-'Форма ввода'!$C$50/100)","v":{"v":0,"d":"0.00"}},{"$f":"ROUND(I80*J80,2)","v":{"v":0,"d":"0.00"}},{"$f":"L10","v":{"v":0,"d":"0%"}},{"$f":"IF(L80=\"Без НДС\",0,ROUND(K80*L80,2))","v":{"v":0,"d":"0.00"}},{"$f":"M80+K80","v":{"v":0,"d":"0.00"}}]
[{"$f":"A11","v":2},0,0,0,0,0,0,0,{"v":0,"d":"0.000"},{"$f":"J11*(1-'Форма ввода'!$C$50/100)","v":{"v":0,"d":"0.00"}},{"$f":"ROUND(I81*J81,2)","v":{"v":0,"d":"0.00"}},{"v":0,"d":"0%"},{"$f":"IF(L81=\"Без НДС\",0,ROUND(K81*L81,2))","v":{"v":0,"d":"0.00"}},{"$f":"M81+K81","v":{"v":0,"d":"0.00"}}]
[{"$f":"A12","v":3},0,0,0,0,0,0,0,{"v":0,"d":"0.000"},{"$f":"J12*(1-'Форма ввода'!$C$50/100)","v":{"v":0,"d":"0.00"}},{"$f":"ROUND(I82*J82,2)","v":{"v":0,"d":"0.00"}},{"v":0,"d":"0%"},{"$f":"IF(L82=\"Без НДС\",0,ROUND(K82*L82,2))","v":{"v":0,"d":"0.00"}},{"$f":"M82+K82","v":{"v":0,"d":"0.00"}}]
[{"$f":"A13","v":4},0,0,0,0,0,0,0,{"v":0,"d":"0.000"},{"$f":"J13*(1-'Форма ввода'!$C$50/100)","v":{"v":0,"d":"0.00"}},{"v":0,"d":"0.00"},{"v":0,"d":"0%"},{"v":0,"d":"0.00"},{"v":0,"d":"0.00"}]
[{"$f":"A14","v":5},0,0,0,0,0,0,0,{"v":0,"d":"0.000"},{"$f":"J14*(1-'Форма ввода'!$C$50/100)","v":{"v":0,"d":"0.00"}},{"v":0,"d":"0.00"},{"v":0,"d":"0%"},{"v":0,"d":"0.00"},{"v":0,"d":"0.00"}]
[{"$f":"A15","v":6},0,0,0,0,0,0,0,{"v":0,"d":"0.000"},{"$f":"J15*(1-'Форма ввода'!$C$50/100)","v":{"v":0,"d":"0.00"}},{"v":0,"d":"0.00"},{"v":0,"d":"0%"},{"v":0,"d":"0.00"},{"v":0,"d":"0.00"}]
[{"$f":"A16","v":7},0,0,0,0,0,0,0,{"v":0,"d":"0.000"},{"$f":"J16*(1-'Форма ввода'!$C$50/100)","v":{"v":0,"d":"0.00"}},{"v":0,"d":"0.00"},{"v":0,"d":"0%"},{"v":0,"d":"0.00"},{"v":0,"d":"0.00"}]
[{"$f":"A17","v":8},0,0,0,0,0,0,0,{"v":0,"d":"0.000"},{"$f":"J17*(1-'Форма ввода'!$C$50/100)","v":{"v":0,"d":"0.00"}},{"v":0,"d":"0.00"},{"v":0,"d":"0%"},{"v":0,"d":"0.00"},{"v":0,"d":"0.00"}]
[{"$f":"A18","v":9},0,0,0,0,0,0,0,{"v":0,"d":"0.000"},{"$f":"J18*(1-'Форма ввода'!$C$50/100)","v":{"v":0,"d":"0.00"}},{"v":0,"d":"0.00"},{"v":0,"d":"0%"},{"v":0,"d":"0.00"},{"v":0,"d":"0.00"}]
[{"$f":"A19","v":10},0,0,0,0,0,0,0,{"v":0,"d":"0.000"},{"$f":"J19*(1-'Форма ввода'!$C$50/100)","v":{"v":0,"d":"0.00"}},{"v":0,"d":"0.00"},{"v":0,"d":"0%"},{"v":0,"d":"0.00"},{"v":0,"d":"0.00"}]
[{"$f":"A20","v":11},0,0,0,0,0,0,0,{"v":0,"d":"0.000"},{"$f":"J20*(1-'Форма ввода'!$C$50/100)","v":{"v":0,"d":"0.00"}},{"v":0,"d":"0.00"},{"v":0,"d":"0%"},{"v":0,"d":"0.00"},{"v":0,"d":"0.00"}]
[{"$f":"A21","v":12},0,0,0,0,0,0,0,{"v":0,"d":"0.000"},{"$f":"J21*(1-'Форма ввода'!$C$50/100)","v":{"v":0,"d":"0.00"}},{"$f":"ROUND(I91*J91,2)","v":{"v":0,"d":"0.00"}},{"v":0,"d":"0%"},{"$f":"IF(L91=\"Без НДС\",0,ROUND(K91*L91,2))","v":{"v":0,"d":"0.00"}},{"$f":"M91+K91","v":{"v":0,"d":"0.00"}}]
[{"$f":"A22","v":13},0,0,0,0,0,0,0,{"v":0,"d":"0.000"},{"$f":"J22*(1-'Форма ввода'!$C$50/100)","v":{"v":0,"d":"0.00"}},{"v":0,"d":"0.00"},{"v":0,"d":"0%"},{"v":0,"d":"0.00"},{"v":0,"d":"0.00"}]
[{"$f":"A23","v":14},0,0,0,0,0,0,0,{"v":0,"d":"0.000"},{"$f":"J23*(1-'Форма ввода'!$C$50/100)","v":{"v":0,"d":"0.00"}},{"v":0,"d":"0.00"},{"v":0,"d":"0%"},{"v":0,"d":"0.00"},{"v":0,"d":"0.00"}]
[{"$f":"A24","v":15},0,0,0,0,0,0,0,{"v":0,"d":"0.000"},{"$f":"J24*(1-'Форма ввода'!$C$50/100)","v":{"v":0,"d":"0.00"}},{"v":0,"d":"0.00"},{"v":0,"d":"0%"},{"v":0,"d":"0.00"},{"v":0,"d":"0.00"}]
[]
["10.3.","В этом случае:\n- оплата Товара осуществляется Покупателем только на основании товарных накладных и счетов-фактур или УПД, в которых цена Товара указана с учетом положений настоящего пункта;\n- товарные накладные и счета-фактуры или УПД, оформленные с нарушением условий о цене Товара, установленных в настоящем пункте, к оплате не принимаются и Покупатель не несет ответственности за несвоевременную оплату Товара;\n- при отгрузке Товара автомобильным транспортом Поставщика и получении его Покупателем по Транспортному документу, в котором цена Товара не соответствует цене, указанной в п.10 настоящей спецификации, Покупатель вправе внести изменения в Транспортный документ: зачеркнуть указанную Поставщиком цену и указать цену, указанную в п.10 настоящей спецификации."]
[{"$f":"IF('Форма ввода'!C48=\"нет\",\"10.\",\"11.\")","v":"10."},"Порядок оплаты: "]
[{"$f":"IF('Форма ввода'!C48=\"нет\",\"10.1.\",\"11.1.\")","v":"10.1."},{"$f":"IF('Форма ввода'!C14=\"руб.\",\"Оплата Товара производится в рублях.\",CONCATENATE(\"Оплата Товара производится \",'Форма ввода'!C52))","v":"Оплата Товара производится (Выпадающий список)"}]
[{"$f":"IF('Форма ввода'!C48=\"нет\",\"10.2.\",\"11.2.\")","v":"10.2."},{"$f":"IF(OR('Форма ввода'!C60=\"(Выпадающий список)\",'Форма ввода'!C60=\"\"),'Форма ввода'!C54,'Форма ввода'!C61)","v":"Выберите порядок оплаты"}]
[{"$f":"IF('Форма ввода'!C69=\"нет\",\"\",IF('Форма ввода'!C48=\"нет\",\"10.3.\",\"11.3.\"))","v":"10.3."},{"$f":"IF('Форма ввода'!C69=\"нет\",\"\",IF('Форма ввода'!C14=\"руб.\",\"Оплата Работ/Услуг производится в рублях.\",CONCATENATE(\"Оплата Работ/Услуг производится \",'Форма ввода'!C70)))","v":"Оплата Работ/Услуг производится (Выпадающий список)"}]
[{"$f":"IF('Форма ввода'!C69=\"нет\",\"\",IF('Форма ввода'!C48=\"нет\",\"10.4.\",\"11.4.\"))","v":"10.4."},{"$f":"IF('Форма ввода'!C69=\"нет\",\"\",'Форма ввода'!C71)","v":"Оплата стоимости Работ/Услуг производится в первый рабочий четверг, а если Покупателем, является ПАО «Казаньоргсинтез», ПАО «Нижнекамскнефтехим», АО «СИБУР-РТ» или АО «ТГК-16» или их дочерние общества - первый рабочий вторник, по истечении  календарных дней с даты подписания Акта выполненных работ (оказания услуг)."}]
[{"$f":"IF('Форма ввода'!C74=\"нет\",\"\",IF('Форма ввода'!C48=\"нет\",\"10.5.\",\"11.5.\"))","v":"10.5."},{"$f":"IF('Форма ввода'!C74=\"нет\",\"\",IF('Форма ввода'!C14=\"руб.\",\"Оплата стоимости разработки документации производится в рублях.\",CONCATENATE(\"Оплата стоимости разработки документации производится в рублях \",'Форма ввода'!C75)))","v":"Оплата стоимости разработки документации производится в рублях (Выпадающий список"}]
[{"$f":"IF('Форма ввода'!C74=\"нет\",\"\",IF('Форма ввода'!C48=\"нет\",\"10.6.\",\"11.6.\"))","v":"10.6."},{"$f":"IF('Форма ввода'!C74=\"нет\",\"\",'Форма ввода'!C76)","v":"Оплата стоимости разработки документации (п.1.2) производится в первый рабочий четверг, а если Покупателем, является ПАО «Казаньоргсинтез», ПАО «Нижнекамскнефтехим», АО «СИБУР-РТ» или АО «ТГК-16» или их дочерние общества - первый рабочий вторник, по истечении  календарных дней с даты подписания акта приемки выполненных работ."}]
[{"$f":"IF('Форма ввода'!C48=\"нет\",\"11.\",\"12.\")","v":"11."},"Поставщик обязан наряду с прочими относящимися к Товару документами передать Покупателю одновременно с передачей Товара следующие документы:"]
["а)","первичная документация:"]
[null,{"$f":"IF('Форма ввода'!D80=\"+\",'Форма ввода'!C81&CHAR(10)&'Форма ввода'!C82&CHAR(10)&'Форма ввода'!C83&CHAR(10)&'Форма ввода'!C84&CHAR(10)&'Форма ввода'!C85,\"\")","v":"УПД\nТоварно-транспортная накладная\nНакладная по форме ТОРГ-12, счет-фактура\n\n"}]
["б)","техническая документация:"]
[null,{"$f":"IF('Форма ввода'!D86=\"+\",'Форма ввода'!C87&CHAR(10)&'Форма ввода'!C88&CHAR(10)&'Форма ввода'!C89&CHAR(10)&'Форма ввода'!C90&CHAR(10)&'Форма ввода'!C91,\"\")","v":"Сертификат (паспорт) качества\n\n\n\n"}]
[{"$f":"IF('Форма ввода'!C48=\"нет\",\"12.\",\"13.\")","v":"12."},"Гарантия на Товар: "]
[null,{"$f":"'Форма ввода'!C96","v":"(Выпадающий список)"}]
[{"$f":"IF('Форма ввода'!C48=\"нет\",\"13.\",\"14.\")","v":"13."},"Специальные условия:"]
[null,{"$f":"IF('Форма ввода'!D98=\"+\",CONCATENATE(\"Адрес для направления оригинала настоящей спецификации, подписанной Поставщиком: \",'Форма ввода'!C98),\" \")","v":"Адрес для направления оригинала настоящей спецификации, подписанной Поставщиком: "}]
[null,{"$f":"IF('Форма ввода'!D99=\"+\",CONCATENATE(\"Адрес для направления оригинала настоящей спецификации, подписанной Покупателем: \",'Форма ввода'!C99),\" \")","v":"Адрес для направления оригинала настоящей спецификации, подписанной Покупателем: "}]
[null,{"$f":"IF('Форма ввода'!D100=\"+\",'Форма ввода'!C100,\" \")","v":" "}]
[null,{"$f":"IF('Форма ввода'!D103=\"+\",'Форма ввода'!C103,\" \")","v":" "}]
[null,{"$f":"IF('Форма ввода'!D105=\"+\",'Форма ввода'!C105,\" \")","v":" "}]
[null,{"$f":"IF('Форма ввода'!D106=\"+\",'Форма ввода'!C106,\" \")","v":" "}]
[null,{"$f":"IF('Форма ввода'!D110=\"+\",'Форма ввода'!C110,\" \")","v":" "}]
[null,{"$f":"IF('Форма ввода'!D112=\"+\",'Форма ввода'!C112,\" \")","v":" "}]
[]
[null,{"$f":"IF('Форма ввода'!D115=\"+\",'Форма ввода'!C115,\" \")","v":" "}]
[null,{"$f":"IF('Форма ввода'!D116=\"+\",'Форма ввода'!C116,\" \")","v":" "}]
[null,{"$f":"IF('Форма ввода'!D117=\"+\",'Форма ввода'!C117,\" \")","v":" "}]
[null,"В товарной накладной или УПД в строке «Основание» Поставщик обязан указывать после номера договорного документа в круглых скобках номера ДД и РО через запятую, указанные в соответствующем договорном документе (указаны в верхнем правом углу договорного документа либо перед таблицей с перечнем поставляемых Товаров). Под номером ДД Стороны понимают номер договорного документа, начинающийся на цифру 12 и  содержащий 12 знаков. Под номером PO Стороны понимают номер заказа на поставку (purchase order), начинающийся на цифру 45 и содержащий 10 знаков."]
[null,"В Акте об оказании услуг/выполнении работ в обязательном порядке указываются ИНН и КПП Сторон."]
[null,"В случае обмена первичными документами с использованием электронного документооборота:\n-применяется Счет-фактура и документ об отгрузке товаров (выполнении работ), передаче имущественных прав (документ об оказании услуг) с функцией СЧФДОП, соответствующий универсальному передаточному документу (УПД), согласно форматам, утвержденным Приказом ФНС России от 19.12.2018 № ММВ-7-15/820@; \n-номера ДД и РО указываются в соответствующих тегах XML-файла:"]
[null,"Доп. информация","Тег","Подтег","Требования к заполнению"]
[null,"Номер ДД","ИнфПолФХЖ1","ТекстИнф/Идентиф\nТекстИнф/Значен","ДОГОВОР\nN(12), вида 12**********"]
[null,"Номер PO","ИнфПолФХЖ1","ТекстИнф/Идентиф\nТекстИнф/Значен","ЗАКАЗ\nN(10), вида 45********"]
[null,"ИЛИ\nиной аналогичный формат ДД и PO, указанный в соответствующих тегах XML-файла, согласованный сторонами"]
[null,"Оплата Товара осуществляется Покупателем только на основании товарных накладных/УПД, заполненных с учетом положений настоящей Спецификации; товарные накладные и УПД, оформленные с нарушением условий об указании номеров ДД и РО, установленных в настоящем пункте, к оплате не принимаются, и Покупатель не несет ответственности за несвоевременную оплату Товара."]
[{"$f":"IF('Форма ввода'!C48=\"нет\",\"14.\",\"15.\")","v":"14."},"Во всем остальном, что не предусмотрено данной Спецификацией, Стороны руководствуются условиями Договора."]
[{"$f":"IF('Форма ввода'!C48=\"нет\",\"15.\",\"16.\")","v":"15."},"Перечень Приложений к настоящей Спецификации:"]
[null,{"$f":"'Форма ввода'!C121","v":"1. Техническое описание Товара\n2. График поставки Товара  (если применимо)\n3. Перечень документации, предоставляемый Покупателем                                                                                                                                                                                                                                           \n4. Перечень документации, предоставляемый Поставщиком\n5. Гарантированные показатели Товара (если применимо)                                                                                                                                                                                                                                                                                                          6. Требования к выполнению Работ/оказанию Услуг\n"}]
[]
[{"$f":"IF('Форма ввода'!C48=\"нет\",\"16.\",\"17.\")","v":"16."},"В случае, если на дату заключения настоящей спецификации между Сторонами уже возникли фактические отношения по его исполнению, подготовке к ее исполнению, настоящая спецификация распространяет свое действие на них с даты их возникновения."]
[{"$f":"IF('Форма ввода'!C48=\"нет\",\"17. Подписи Сторон\",\"18. Подписи Сторон\")","v":"17. Подписи Сторон"}]
[]
[null,"Поставщик",{"$nulls":4},"Покупатель"]
[null,{"$f":"'Форма ввода'!C13","v":0},{"$nulls":4},{"$f":"VLOOKUP('Форма ввода'!C11,Справочник!A2:C42,2,)","v":"(Выпадающий список)"}]
[null,{"$f":"CONCATENATE(\"ИНН \",'Форма ввода'!C126)","v":"ИНН "},{"$nulls":5},{"$f":"CONCATENATE(\"ИНН \",'Форма ввода'!C138)","v":"ИНН "}]
[null,{"$f":"CONCATENATE(\"КПП \",'Форма ввода'!C127)","v":"КПП "},{"$nulls":5},{"$f":"CONCATENATE(\"КПП \",'Форма ввода'!C139)","v":"КПП "}]
[null,{"$f":"CONCATENATE(\"ОГРН \",'Форма ввода'!C132)","v":"ОГРН "},{"$nulls":5},{"$f":"CONCATENATE(\"ОГРН \",'Форма ввода'!C144)","v":"ОГРН "}]
[null,"Банковские реквизиты",{"$nulls":5},"Банковские реквизиты"]
[null,{"$f":"CONCATENATE(\"Наименование банка: \",'Форма ввода'!C128)","v":"Наименование банка: "},{"$nulls":5},{"$f":"CONCATENATE(\"Наименование банка: \",'Форма ввода'!C140)","v":"Наименование банка: "}]
[null,{"$f":"CONCATENATE(\"р/счет: \",'Форма ввода'!C129)","v":"р/счет: "},{"$nulls":5},{"$f":"CONCATENATE(\"р/счет: \",'Форма ввода'!C141)","v":"р/счет: "}]
[null,{"$f":"CONCATENATE(\"БИК: \",'Форма ввода'!C130)","v":"БИК: "},{"$nulls":5},{"$f":"CONCATENATE(\"БИК: \",'Форма ввода'!C142)","v":"БИК: "}]
[null,{"$f":"CONCATENATE(\"к/счет: \",'Форма ввода'!C131)","v":"к/счет: "},{"$nulls":5},{"$f":"CONCATENATE(\"к/счет: \",'Форма ввода'!C143)","v":"к/счет: "}]
[null,{"$f":"CONCATENATE(\"___________________ / \",'Форма ввода'!C133,\" /\")","v":"___________________ /  /"},{"$nulls":5},{"$f":"IF('Форма ввода'!C146=\"Альтернативное подписание\",\"___________________/___________________________/\",CONCATENATE(\"__________________ / \",'Форма ввода'!C145,\" /\"))","v":"__________________ /  /"}]
[null,{"$f":"IFERROR(IF('Форма ввода'!C134=\"ИП\",\"\",\nIF('Форма ввода'!C134=\"Договора управления\",\nCONCATENATE(\"на основании Договора управления № \",'Форма ввода'!C135,\" \nот \",TEXT(DAY('Форма ввода'!$C$136),\"00\")&\" \"&VLOOKUP(MONTH('Форма ввода'!$C$136),Справочник!$D$2:$E$13,2,0)&\" \"&YEAR('Форма ввода'!$C$136)&\" г. и  устава\"),IF('Форма ввода'!C134=\"Устава\",\nCONCATENATE(\"на основании \",'Форма ввода'!C134,\".\"),\nCONCATENATE(\"на основании \",'Форма ввода'!C134,\" № \",'Форма ввода'!C135,\" от \",TEXT(DAY('Форма ввода'!$C$136),\"00\")&\" \"&VLOOKUP(MONTH('Форма ввода'!$C$136),Справочник!$D$2:$E$13,2,0)&\" \"&YEAR('Форма ввода'!$C$136)&\" г.\")))), \"Дату на форме ввода необходимо вводить в формате ДД.ММ.ГГГГ\")","v":"на основании (Выпадающий список) №  от 00 января 1900 г."},{"$nulls":5},{"$f":"IFERROR(IF('Форма ввода'!C146=\"Устава\",\nCONCATENATE(\"на основании \",'Форма ввода'!C146,\".\"),IF('Форма ввода'!C146=\"Альтернативное подписание\",\" \",\nCONCATENATE(\"на основании \",'Форма ввода'!C146,\" № \",'Форма ввода'!C147,\" от \",TEXT(DAY('Форма ввода'!$C$148),\"00\")&\" \"&VLOOKUP(MONTH('Форма ввода'!$C$148),Справочник!$D$2:$E$13,2,0)&\" \"&YEAR('Форма ввода'!$C$148)&\" г.\"))), \"Дату на форме ввода необходимо вводить в формате ДД.ММ.ГГГГ\")","v":"на основании (Выпадающий список) №  от 00 января 1900 г."}]
[{"$nulls":7},"<#stmp> "]

{"sheet":"Форма ввода","index":1,"n_rows":148,"n_cols":6,"rows_kept":148,"merged":[[2,0,2,2],[17,0,17,2],[27,0,27,2],[29,0,29,2],[41,0,41,2],[46,0,46,2],[50,0,50,2],[58,0,58,2],[67,0,67,2],[72,0,72,2],[77,0,77,2],[92,0,92,2],[96,0,96,2],[99,5,99,15],[100,5,100,15],[104,5,104,15],[109,5,109,15],[110,5,110,15],[119,0,119,2],[124,0,124,2],[136,0,136,2]]}
[null,"Заполните форму и все значения подтянутся в Шаблон Спецификация"]
["№ п/п Спец","Наименование пункта","Желтые поля - ввод данных, Серые поля - выпадающий список"]
["Основные данные Спецификация"]
["0.","№ договора поставки"]
["0.","Дата договора поставки"]
["0.","№ Спец"]
["0.","Дата Спец"]
["0.","Код проекта (справочно)"]
["0.","№ RCM карточки"]
["0.","№ заказа поставщику"]
["0.","Предприятие \"Покупатель\"","(Выпадающий список)"]
["0.","Предприятие \"Поставщик\" (длинное наименование)"]
["0.","Предприятие \"Поставщик\" (краткое наименование)"]
["1.","Валюта","(Выпадающий список)",{"$f":"VLOOKUP(C14,Справочник!$Y$3:$Z$9,2,)","v":{"$error":"#N/A"}}]
["1.","Валюта услуг","(Выпадающий список)",{"$f":"VLOOKUP(C15,Справочник!$Y$3:$Z$9,2,)","v":{"$error":"#N/A"}}]
["7.","Контактные данные поставщика (email, телефон факса)"]
["7.","Контактные данные покупателя (email, телефон факса)"]
["Когда в обязанности Поставщика входит разработка проектно-конструкторской, технической или эксплуатационной документации"]
["1.2.0.","Цена разработки документации"]
["1.2.0.","НДС цены разработки документации (% НДС)"]
["1.2.","Стоимость разработки документации (заполните  номер приложения(при необходимости), цену и НДС и  разработки документации перед выбором строки из выпадающего списка)","(Выпадающий список)"]
["1.2.0.","Внесите номер приложения, где указана перечень документации на Товар"]
["1.2.0.","Нужен ли регламент, в части согласования Документации Поставщика","(Выпадающий список)"]
["1.2.0.","Кол-во дней/график разработки документации"]
["1.2.0.","Срок разработки документации(заполните кол-во дней перед выбором строки из выпадающего списка)","(Выпадающий список)"]
["1.2.1.","Выберите документацию, которую необходимо разработать (необходимо заполнять, если перечень документации должен быть указан в настоящей спецификации)","(Выпадающий список)"]
["1.2.1.","Укажите документацию, которую необходимо разработать(если выбрано ручное заполнение)"]
["Партия поставки"]
["3.","Партия поставки","(Выпадающий список)"]
["Условия поставки (место, сроки)"]
["4.1.","Адрес поставки:\n- указать полный адрес склада, включая субъект РФ, район, населенный пункт, улицу, номер дома/строения;\n- указать наименование жд станции, местоположение, код, иные реквизиты станции назначения."]
["4.","Условия поставки:","(Выпадающий список)"]
["5.1.","Грузоотправитель (указать наименование, адрес, иные реквизиты):"]
["5.2.","Грузополучатель (указать наименование, адрес, иные реквизиты, контактное лицо, ответственное за приемку):"]
[]
[]
["6.","Срок поставки (если требуется, заполните 6.1-6.4 и повторно выберите срок поставки)","(Выпадающий список)"]
["6.1.","Внесите кол-во календарных дней с даты заключения настоящей Спецификаци/ перечисления авансового платежа"]
["6.2.","Внесите конкректную дату  поставки/ дату не ранее какой необходимо поставить Товар/ с какой даты можно поставлять"]
["6.3.","Внесите по какую дату можно поставлять"]
["6.4.","Внесите Дату не позднее которой, нужно подписать Спецификацию обеими сторонами"]
["Отказ от Товара"]
["9.","При отказе от принятия Товара",{"$f":"CONCATENATE(\"При отказе от принятия Товара Покупатель направляет Поставщику уведомление по электронной почте, не позднее \", 'Форма ввода'!$C$44,\" \", IFERROR(VLOOKUP('Форма ввода'!$C$44,Справочник!AI2:AJ101,2,0),\"\"),\" рабочих дней с момента истечения срока поставки Товара, указанного в данной Дополнительном соглашенииСпецификации. При этом Поставщик:\")","v":"При отказе от принятия Товара Покупатель направляет Поставщику уведомление по электронной почте, не позднее 3 (Трех) рабочих дней с момента истечения срока поставки Товара, указанного в данной Дополнительном соглашенииСпецификации. При этом Поставщик:"}]
[null,"Укажите кол-во рабочих дней для уведомления",3]
["9.1.","Обязательство на вывоз или распоряжение Товаром",{"$f":"CONCATENATE(\"обязан в течение \", 'Форма ввода'!$C$46,\" \", IFERROR(VLOOKUP('Форма ввода'!$C$46,Справочник!AI2:AJ101,2,0),\"\"),\" календарных дней с момента направления Покупателем уведомления вывезти Товар или иным образом распорядиться Товаром.\",\" Если Поставщик в указанный срок не распорядился Товаром, Покупатель вправе реализовать Товар по любой цене.\",\" Денежные средства, полученные от реализации Товара, Покупатель передает Поставщику за вычетом всех расходов, понесенных Покупателем в связи с хранением,\",\" реализацией Товара, а также в связи с простоем железнодорожного или автомобильного транспорта, арендой путей;\")","v":"обязан в течение 2 (Двух) календарных дней с момента направления Покупателем уведомления вывезти Товар или иным образом распорядиться Товаром. Если Поставщик в указанный срок не распорядился Товаром, Покупатель вправе реализовать Товар по любой цене. Денежные средства, полученные от реализации Товара, Покупатель передает Поставщику за вычетом всех расходов, понесенных Покупателем в связи с хранением, реализацией Товара, а также в связи с простоем железнодорожного или автомобильного транспорта, арендой путей;"}]
["9.1.1.","Укажите кол-во календарных дней на вывоз или распоряжение Товаром",2]
["Параметры для расчета 3 цен"]
["10.","Требуется ли применить 3 цены? (если нет, то обязательно скройте п.10.1-10.3. в ДС/Спецификации, , при этом пункт 8 будет также скорректирован.)","нет"]
["10.1.","при поставке Товара в течение 10 (десяти) дней после требуемого срока, укажите процент снижения цены"]
["10.2.","при поставке Товара по истечении 10 (десяти) дней после требуемого срока, укажите процент снижения цены"]
["Порядок оплаты Товара"]
["11.1.","Порядок оплаты - валюта","(Выпадающий список)"]
["11.2.0.","Порядок оплаты - определите базовые условия оплаты","(Выпадающий список)"]
["11.2.","БАЗОВЫЙ:\nПорядок оплаты - условия оплаты (если требуется, заполните 11.2.1-11.2.4 и повторно выберите порядок оплаты)\nЕсли сумма аванса составляет 500 т.р. и более, то необходимо получить согласование Кредитного управления.",{"$f":"IF(C53=\"(Выпадающий список)\",\"Выберите порядок оплаты\",IF((C53=\"Предоплата\")*(ISBLANK(C55)),\"Укажите количество дней предоплаты\",IF((C53=\"Постоплата\")*(ISBLANK(C56)),\"Укажите количество дней постоплаты\",IF((OR(C53=\"Частичнаяпредоплата\",C53=\"Частичнаяпредоплата_с_БГ\",C53=\"Предоплата_c_БГ\")*(ISBLANK(C55))+OR(C53=\"Частичнаяпредоплата\",C53=\"Предоплата_c_БГ\",C53=\"Частичнаяпредоплата\")*(ISBLANK(C56))),\"Укажите количество дней частичной предоплаты/постоплаты\",INDIRECT($C$53)))))","v":"Выберите порядок оплаты"}]
["11.2.1.","Внесите кол-во календарных дней с даты подписания спецификации по предоплате/частичной предоплате"]
["11.2.2.","Внесите кол-во календарных дней с даты поставки Товара по постоплате / частичной постоплате"]
["11.2.3.","Внесите процент предоплаты, если требуется"]
["11.2.4.","Автоматически рассчитывается % постоплаты",{"$f":"100%-C57","v":{"v":1,"d":"100%"}}]
["Порядок оплаты в исключительных случаях (когда есть эффект для Компании):\nВАЖНО! Если контрагент не согласен с базовыми вариантами (требует оплаты в любой день недели – не четверг), то:\n1. Требуется согласование Директора ФОП предприятия для предприятий, руководителя направления для КЦ\n2. Требуется согласование функции «Казначейство» (Наталья Васильева VasilievaNV@bsc.sibur.ru / Оксана Каленова KalenovaOB@sibur.ru) для включения контрагента в список исключений в SAP ERP\n3. Внесите данные ниже в ячейки"]
["*11.2.0.","Порядок оплаты - определите условия оплаты","(Выпадающий список)"]
["*11.2.","ИСКЛЮЧИТЕЛЬНЫЙ (если контрагент отказывается от БАЗОВОГО варианта):\nПорядок оплаты - условия оплаты (если требуется, заполните *11.2.1-*11.2.6 и повторно выберите порядок оплаты)"]
["*11.2.1.","Внесите кол-во календарных дней с даты подписания спецификации по предоплате/частичной предоплате"]
["*11.2.2.","Внесите кол-во календарных дней с даты поставки Товара по постоплате / частичной постоплате"]
["*11.2.3.","Внесите дату оплаты по предоплате/частичной предоплате"]
["*11.2.4.","Внесите дату оплаты по постоплате / частичной постоплате"]
["*11.2.5.","Внесите процент предоплаты, если требуется"]
["*11.2.6.","Автоматически рассчитывается % постоплаты",{"$f":"100%-C66","v":{"v":1,"d":"100%"}}]
["Порядок оплаты Работ/Услуг"]
[null,"Выделена ли стоимость Работ/Услуг отдельно?","да"]
["11.3.","Порядок оплаты - валюта","(Выпадающий список)"]
["11.4.","Порядок оплаты - условия оплаты ",{"$f":"CONCATENATE(\"Оплата стоимости Работ/Услуг производится в первый рабочий четверг, а если Покупателем, является ПАО «Казаньоргсинтез», ПАО «Нижнекамскнефтехим», АО «СИБУР-РТ» или АО «ТГК-16» или их дочерние общества - первый рабочий вторник, по истечении \",C72,\" календарных дней с даты подписания Акта выполненных работ (оказания услуг).\")","v":"Оплата стоимости Работ/Услуг производится в первый рабочий четверг, а если Покупателем, является ПАО «Казаньоргсинтез», ПАО «Нижнекамскнефтехим», АО «СИБУР-РТ» или АО «ТГК-16» или их дочерние общества - первый рабочий вторник, по истечении  календарных дней с даты подписания Акта выполненных работ (оказания услуг)."}]
["11.4.1.","Внесите кол-во календарных дней с даты подписания Акта выполненных работ"]
["Порядок оплаты Разработки документации"]
[null,"Выделена ли стоимость Разработки документации отдельно?","да"]
["11.5.","Порядок оплаты - валюта","(Выпадающий список"]
["11.6.","Порядок оплаты - условия оплаты ",{"$f":"CONCATENATE(\"Оплата стоимости разработки документации (п.1.2) производится в первый рабочий четверг,\" & \" а если Покупателем, является ПАО «Казаньоргсинтез», ПАО «Нижнекамскнефтехим», АО «СИБУР-РТ» или АО «ТГК-16» или их дочерние общества - первый рабочий вторник, по истечении \",C77,\" календарных дней с даты подписания акта приемки выполненных работ.\")","v":"Оплата стоимости разработки документации (п.1.2) производится в первый рабочий четверг, а если Покупателем, является ПАО «Казаньоргсинтез», ПАО «Нижнекамскнефтехим», АО «СИБУР-РТ» или АО «ТГК-16» или их дочерние общества - первый рабочий вторник, по истечении  календарных дней с даты подписания акта приемки выполненных работ."}]
["11.6.1.","Внесите кол-во календарных дней с даты подписания Акта выполненных работ"]
["Обязательный перечень сопроводительных документов"]
["12.","Поставщик обязан передать следующие документы:"]
[null,"Первичная документация (выбрать, заполнить)",null,"+"]
["12.1.1","Поставщик обязан передать следующие документы: (Документ 1)","УПД"]
["12.1.2","Поставщик обязан передать следующие документы: (Документ 2)","Товарно-транспортная накладная"]
["12.1.3","Поставщик обязан передать следующие документы: (Документ 3)","Накладная по форме ТОРГ-12, счет-фактура"]
["12.1.4","Поставщик обязан передать следующие документы: (Документ 4)"]
["12.1.5","Поставщик обязан передать следующие документы: (Документ 5)"]
[null,"Техническая документация (выбрать, заполнить)",null,"+"]
["12.1.6","Поставщик обязан передать следующие документы: (Документ 1)","Сертификат (паспорт) качества"]
["12.1.7","Поставщик обязан передать следующие документы: (Документ 2)"]
["12.1.8","Поставщик обязан передать следующие документы: (Документ 3)"]
["12.1.9","Поставщик обязан передать следующие документы: (Документ 4)"]
["12.1.10","Поставщик обязан передать следующие документы: (Документ 5)"]
[]
["Гарантийный срок"]
["13.1.","Кол-во месяцев гарантии с даты ввода в эксплуатацию","(Выпадающий список)"]
["13.2.","Заполняется, если необходимо внести в п.13 точное кол-во месяцев гарантии","(Выпадающий список)"]
["13.","Гарантия на Товар (внесите в п.13.1.-13.2. кол-во месяцев и повторно выберите гарантию)","(Выпадающий список)"]
["14. Специальные условия\n!!! Поставьте \"+\" в столбце D, если необходимо вывести спецусловие в форму","Специальные условия:!!! Удалить в столбце С все лишнее",null,"Поставьте \"+\", если необходимо вывести спецусловие в форму"]
["14.1","Адрес Покупателя для отправки оригинала ДС",null,"+"]
["14.2","Адрес Поставщика для отправки оригинала ДС\n(Укажите адрес Поставщика для отправки оригинала ДД после краткого наименования)",null,"+"]
["14.3","Срок изготовления Товара","(Выпадающий список)"]
["14.3.1","Внесите не ранее какой даты должен быть изготовлен Товар/ новым, не ранее какой даты выпуска"]
["14.3.2","Внесите за исключением каких позиций п.из Таблицы 1."]
["14.4","Ссылка на приложение с техописанием Товара",{"$f":"CONCATENATE(\"Техническое описание Товара указано в Приложении № \",C104,\" к настоящей Спецификации.\")","v":"Техническое описание Товара указано в Приложении №  к настоящей Спецификации."}]
["14.4.1.","№ Приложения технического описания Товара"]
["14.5","График изготовления (поставьте \"+\" для вывода данного условия в форму)","В соответствии с условиями Договора Поставщик в рамках исполнения настоящей Спецификации обязан разработать График изготовления и отгрузки Товара. "]
["14.7","Дополнительный объем - опцион\n(внесите данные в 14.7.1.-14.7.3. и поставьте \"+\" для вывода данного условия в форму)",{"$f":"CONCATENATE(\"В соответствии со ст. 429.3 ГК РФ Покупатель вправе в срок до \",TEXT(DAY(C107),\"00\")&\" \"&VLOOKUP(MONTH(C107),Справочник!$D$2:$E$13,2,0)&\" \"&YEAR(C107)&\" года\",\" потребовать от Поставщика поставить дополнительный объем Товара, указанного в п.1 настоящей Спецификации, в пределах \",TEXT($C$108,\"0%\"), \" от количества, согласованного в настоящей Спецификации по каждой позиции.\",\n\" Требование Покупателя о поставке дополнительного объема Товара будет считаться заявленным в пределах указанного в настоящем пункте срока,\", \"если требование о поставке Товара будет отправлено Покупателем в адрес Поставщика до истечения предусмотренного настоящим пунктом срока.\",\n\" Настоящим стороны пришли к соглашению, что стоимость права требования Покупателя, предусмотренного настоящим пунктом, включена в стоимость Товара, указанную в настоящей Спецификации.\",\n\" В случае предъявления Покупателем требования, предусмотренного настоящим пунктом, Поставщик обязан в течение \",C109,\n\" календарных дней с даты направления Покупателем этого требования поставить Покупателю указанное в требовании Покупателя количество Товара по цене,\",\n\" не выше согласованной в п.1 настоящей спецификации цены и на условиях, предусмотренных Договором, а также настоящей спецификацией.\")","v":"В соответствии со ст. 429.3 ГК РФ Покупатель вправе в срок до 00 января 1900 года потребовать от Поставщика поставить дополнительный объем Товара, указанного в п.1 настоящей Спецификации, в пределах 0% от количества, согласованного в настоящей Спецификации по каждой позиции. Требование Покупателя о поставке дополнительного объема Товара будет считаться заявленным в пределах указанного в настоящем пункте срока,если требование о поставке Товара будет отправлено Покупателем в адрес Поставщика до истечения предусмотренного настоящим пунктом срока. Настоящим стороны пришли к соглашению, что стоимость права требования Покупателя, предусмотренного настоящим пунктом, включена в стоимость Товара, указанную в настоящей Спецификации. В случае предъявления Покупателем требования, предусмотренного настоящим пунктом, Поставщик обязан в течение  календарных дней с даты направления Покупателем этого требования поставить Покупателю указанное в требовании Покупателя количество Товара по цене, не выше согласованной в п.1 настоящей спецификации цены и на условиях, предусмотренных Договором, а также настоящей спецификацией."}]
["14.7.1","Внесите требуемый срок поставки доп.объема"]
["14.7.2","Внесите % от кол-ва, согласованного в настоящей спецификации по каждой позиции. "]
["14.7.3","Внесите х кол-во календарных дней для поставки допобъема"]
["14.8","Толеранс (внесите % толеранса в 14.8.1. и поставьте \"+\" для вывода данного условия в форму)\n! Не применимо, если товар в штуках",{"$f":"CONCATENATE(\"При исполнении настоящего дополнительного соглашения допускается отклонение от согласованного Сторонами количества Товара (толеранс) в пределах +/-\",TEXT($C$111,\"0%\"), \" по отдельным позициям.\",\" \nПри наличии расхождений по количеству Товара в пределах толеранса Сторонами производится доплата или возврат денежных средств не позднее \", 'Форма ввода'!$C$56,\" \", IFERROR(VLOOKUP('Форма ввода'!$C$56,Справочник!AI2:AJ101,2,0),\"\"),\" дней с даты поставки Товара.\")","v":"При исполнении настоящего дополнительного соглашения допускается отклонение от согласованного Сторонами количества Товара (толеранс) в пределах +/-0% по отдельным позициям. \nПри наличии расхождений по количеству Товара в пределах толеранса Сторонами производится доплата или возврат денежных средств не позднее   дней с даты поставки Товара."},null,null,"Техническое описание Товара указано в Приложении № ____ к настоящей Спецификации."]
["14.8.1.","Укажите % толеранса"]
[]
["14.10","Условия входного контроля\n(внесите данные в 14.10.1. и поставьте \"+\" для вывода данного условия в форму)",{"$f":"CONCATENATE(\"Товар, поставляемый по настоящей Спецификации, подлежит входному контролю со стороны Покупателя согласно локально-нормативным актам Покупателя. \",\"Покупатель  самостоятельно осуществляет входной контроль поставленного Товара в течение \",C114,\" календарных дней с момента поступления Товара на склад Покупателя. \",\"При этом проверяемый товар помещается Покупателем на ответственное хранение до момента окончания проведения входного контроля. \",\"Если по результатам входного контроля несоответствий Покупателем не выявлено, что подтверждается составленным Актом о результатах входного контроля, то  Покупатель подписывает Товарную накладную (ТОРГ-12).\",\" Датой поставки в данном случае является дата подписания Покупателем Товарной накладной без замечаний.\",\" С этого момента обязанность Поставщика передать товар Покупателю считается исполненной, и к Покупателю  переходят право собственности на товар, а также риск его случайной гибели или случайного повреждения.\",\" Если  по итогам входного контроля выявлены несоответствия,  то Покупатель действует в соответствии с условиями Договора.\")","v":"Товар, поставляемый по настоящей Спецификации, подлежит входному контролю со стороны Покупателя согласно локально-нормативным актам Покупателя. Покупатель  самостоятельно осуществляет входной контроль поставленного Товара в течение  календарных дней с момента поступления Товара на склад Покупателя. При этом проверяемый товар помещается Покупателем на ответственное хранение до момента окончания проведения входного контроля. Если по результатам входного контроля несоответствий Покупателем не выявлено, что подтверждается составленным Актом о результатах входного контроля, то  Покупатель подписывает Товарную накладную (ТОРГ-12). Датой поставки в данном случае является дата подписания Покупателем Товарной накладной без замечаний. С этого момента обязанность Поставщика передать товар Покупателю считается исполненной, и к Покупателю  переходят право собственности на товар, а также риск его случайной гибели или случайного повреждения. Если  по итогам входного контроля выявлены несоответствия,  то Покупатель действует в соответствии с условиями Договора."}]
["14.10.1.","Укажите кол-во календарных дней входного контроля"]
["14.11","Замена дефектного Товара","В случае выявления несоответствия количества Товара данным, указанным в накладной, и/или несоответствия качества, комплектности Товара Поставщик в течение 7 календарных дней с даты направления Покупателем или Грузополучателем соответствующего требования посредством электронной почты (если иной срок не согласован сторонами) обязан произвести замену дефектного Товара на качественный и/или доукомплектовать (допоставить) Товар."]
["14.12","Изменение ставки НДС (только по требованию поставщика)","В случае законодательного изменения (уменьшения или увеличения) ставки НДС цена Товара изменяется (уменьшается или увеличивается) на соответствующую сумму изменения ставки НДС."]
["14.13.","Условия отложенного платежа платежа (% от стоимости Товара удерживается до момента выполнения Работ/оказания Услуг с целью мотивации Поставщика завершить Работы/оказать Услуги)",{"$f":"\"Сумма оплаты за Товар уменьшается на \" & C118*100&  \"% от стоимости Товара (Отложенный платеж) -  сумму, являющуюся гарантией исполнения Поставщиком своих обязательств по выполнению Работ/ оказанию Услуг по Спецификации.\"&\n\" Сумма Отложенного платежа выплачивается Покупателем Поставщику  в первый рабочий четверг по истечении \" & C119 & IFERROR(VLOOKUP($C$119,Справочник!$AI$2:$AJ$101,2,0),\"\") & \" календарных дней, исчисляемых начиная со дня, следующего за датой подписания Сторонами последнего из Актов об оказании услуг/выполнении работ.\"&\n\" Стороны признают, что формирование Покупателем  Отложенного платежа представляет собой согласованный способ обеспечения выполнения Поставщиком своих обязательств по Спецификации.\"","v":"Сумма оплаты за Товар уменьшается на 0% от стоимости Товара (Отложенный платеж) -  сумму, являющуюся гарантией исполнения Поставщиком своих обязательств по выполнению Работ/ оказанию Услуг по Спецификации. Сумма Отложенного платежа выплачивается Покупателем Поставщику  в первый рабочий четверг по истечении  календарных дней, исчисляемых начиная со дня, следующего за датой подписания Сторонами последнего из Актов об оказании услуг/выполнении работ. Стороны признают, что формирование Покупателем  Отложенного платежа представляет собой согласованный способ обеспечения выполнения Поставщиком своих обязательств по Спецификации."}]
["14.13.1.","Укажите %уменьшения стоимости"]
["14.13.2.","Укажите кол-во календарных дней"]
["Перечень приложений к спецификации"]
["16.","Скорректируйте перечень и порядок приложений к спецификации","1. Техническое описание Товара\n2. График поставки Товара  (если применимо)\n3. Перечень документации, предоставляемый Покупателем                                                                                                                                                                                                                                           \n4. Перечень документации, предоставляемый Поставщиком\n5. Гарантированные показатели Товара (если применимо)                                                                                                                                                                                                                                                                                                          6. Требования к выполнению Работ/оказанию Услуг\n"]
[]
[]
[]
["Данные о подписантах (Поставщик)"]
["17.1.","ИНН"]
["17.2.","КПП"]
["17.3.","Наименование банка:"]
["17.4.","р/счет"]
["17.5.","БИК"]
["17.6.","к/счет"]
["17.7.","ОГРН"]
["17.8.","ФИО подписанта со стороны Поставщика (И.О. Фамилия)"]
["17.8.1.","Вид документа на основании чего подписывает ","(Выпадающий список)"]
["17.8.2.","№ Документа на основании чего подписывает "]
["17.8.3.","Дата документа на основании чего подписывает"]
["Данные о подписантах (Покупатель)"]
["17.1.","ИНН"]
["17.2.","КПП"]
["17.3.","Наименование банка:"]
["17.4.","р/счет"]
["17.5.","БИК"]
["17.6.","к/счет"]
["17.7.","ОГРН"]
["17.8.","ФИО подписанта со стороны Покупателя (И.О. Фамилия)"]
["17.8.1.","Вид документа на основании чего подписывает ","(Выпадающий список)"]
["17.8.2.","№ Документа на основании чего подписывает "]
["17.8.3.","Дата документа на основании чего подписывает"]

{"sheet":"Инструкция по заполнению","index":2,"n_rows":5,"n_cols":3,"rows_kept":5}
["Инструкция по заполнению формы ЕУФ"]
["№","Действие","Ссылка на лист"]
[1,"Заполните лист \"Форма ввода\" - все поля","Форма ввода"]
[2,"Заполните табличную форму в самой форме \"Спецификация\", все прочие поля подтянутся из \"Форма ввода\"","Спецификация"]
[3,"Проверьте форму \"Спецификация\", если необходимо, внесите правки в \"Форма ввода\", все значения автоматически подтянутся в \"Спецификация\", скорректируйте высоту строк и скройте лишние строки в таблицах и в п.14 \"Специальные условия\"","Спецификация"]

{"sheet":"Справочник","index":3,"n_rows":102,"n_cols":36,"rows_kept":102,"hidden":true}
["Код поставщика","Краткое наименование","Предприятия","Код месяца","Название месяца","Условия поставки:","Грузополучатель","Срок поставки","Порядок оплаты (валюта) Товара","Порядок оплаты (валюта) Работ/Услуг","Порядок оплаты: базовые условия",null,"Порядок оплаты: способ","Порядок оплаты: исключения",null,"Порядок оплаты (исключения): способ",null,"Гарантия на Товар","Датой поставки считается","Гарантия","Стоимость разработки документации","Срок разработки документации","Партия поставки","Срок изготовления Товара","Валюта","Валюта",{"$nulls":8},"Дней(число)","Дней(текст)"]
["(Выпадающий список)","(Выпадающий список)","(Выпадающий список)",1,"января","(Выпадающий список)","(Выпадающий список)","(Выпадающий список)","(Выпадающий список)","(Выпадающий список)","(Выпадающий список)","(Выпадающий список)","(Выпадающий список)","(Выпадающий список)",null,"(Выпадающий список)",null,"(Выпадающий список)","(Выпадающий список)","(Выпадающий список)","(Выпадающий список)","(Выпадающий список)","(Выпадающий список)","(Выпадающий список)","(Выпадающий список)",{"$nulls":9},1,"(Одного)"]
["БИАКСПЛЕН","ООО «БИАКСПЛЕН»","Общество с ограниченной ответственностью «БИАКСПЛЕН» ",2,"февраля","Доставка до склада Покупателя (Грузополучателя), расположенного по адресу, указанному  в п.5.2.","Нижегородская область, Балахнинский район, поселок Гидроторф, ул. Административная, д.17.","в соответствии с таблицей п. 1 настоящей Спецификации.","в рублях по курсу ЦБ РФ на дату списания денежных средств с расчетного счета Покупателя.","в рублях по курсу ЦБ РФ на дату списания денежных средств с расчетного счета Покупателя.","Предоплата","Постоплата",{"$f":"CONCATENATE(\"Оплата Товара производится Покупателем в первый рабочий четверг, а если Покупателем, является ПАО «Казаньоргсинтез», ПАО «Нижнекамскнефтехим», АО «СИБУР-РТ» или АО «ТГК-16» или их дочерние общества - первый рабочий вторник, по истечении \",'Форма ввода'!C56,\" календарных дней, исчисляемых начиная со дня, следующего за датой поставки Товара.\")","v":"Оплата Товара производится Покупателем в первый рабочий четверг, а если Покупателем, является ПАО «Казаньоргсинтез», ПАО «Нижнекамскнефтехим», АО «СИБУР-РТ» или АО «ТГК-16» или их дочерние общества - первый рабочий вторник, по истечении  календарных дней, исчисляемых начиная со дня, следующего за датой поставки Товара."},"Предоплата_исключение","Постоплата_исключение",{"$f":"CONCATENATE(\"Оплата Товара производится Покупателем не позднее \",'Форма ввода'!C63,\" календарных дней, исчисляемых начиная со дня, следующего за датой поставки Товара.\")","v":"Оплата Товара производится Покупателем не позднее  календарных дней, исчисляемых начиная со дня, следующего за датой поставки Товара."},null,"Согласно условиям Договора (п. 8.3. Договора).","Дата выдачи Товара Покупателю (грузополучателю) на станции назначения (п.2), указанная на штемпеле транспортной железнодорожной накладной.","1 месяц",{"$f":"CONCATENATE(\"В соответствии с п. 9.1  Договора  Поставщик обязуется разработать для Покупателя документацию на Товар, указанную в настоящей Спецификации.\", \"\nСтоимость разработки документации включена в стоимость Товара. \",\"\nПо окончании работ по разработке Документации Поставщик одновременно с Документацией составляет и передает Покупателю акт приемки выполненных работ.\")","v":"В соответствии с п. 9.1  Договора  Поставщик обязуется разработать для Покупателя документацию на Товар, указанную в настоящей Спецификации.\nСтоимость разработки документации включена в стоимость Товара. \nПо окончании работ по разработке Документации Поставщик одновременно с Документацией составляет и передает Покупателю акт приемки выполненных работ."},{"$f":"CONCATENATE(\"Срок разработки документации \",'Форма ввода'!C24,\" календарных дней с даты заключения настоящей Спецификации.\")","v":"Срок разработки документации  календарных дней с даты заключения настоящей Спецификации."},"Согласно условиям Договора (п.4.3 Договора).",{"$f":"CONCATENATE(\"Товар должен быть изготовлен не ранее \",TEXT(DAY('Форма ввода'!C101),\"00\")&\" \"&VLOOKUP(MONTH('Форма ввода'!C101),Справочник!$D$2:$E$13,2,0)&\" \"&YEAR('Форма ввода'!C101)&\" г.\")","v":"Товар должен быть изготовлен не ранее 00 января 1900 г."},"руб.","коп.",{"$nulls":8},2,"(Двух)"]
["Воронежсинтезкаучук","АО «Воронежсинтезкаучук»","Акционерное общество «Воронежский Синтетический Каучук» ",3,"марта","Железнодорожным транспортном до станции Покупателя (Грузополучателя), расположенного на станции: ","г. Воронеж, ул. Менделеева 3Б.",{"$f":"CONCATENATE(\"в течение \",'Форма ввода'!C38,\" календарных дней с даты подписания настоящей Спецификации, но не ранее \",TEXT(DAY('Форма ввода'!C39),\"00\")&\" \"&VLOOKUP(MONTH('Форма ввода'!C39),Справочник!$D$2:$E$13,2,0)&\" \"&YEAR('Форма ввода'!C39)&\" г.\")","v":"в течение  календарных дней с даты подписания настоящей Спецификации, но не ранее 00 января 1900 г."},"в рублях по курсу ЦБ РФ на дату перехода права собственности на товар, определяемую согласно договору.","в рублях по курсу ЦБ РФ на дату подписания Заказчиком Акта выполненных работ (оказания услуг).","Постоплата","Предоплата",{"$f":"CONCATENATE(\"Оплата Товара производится Покупателем в порядке предварительной оплаты в размере 100%\",\" стоимости Товара в первый рабочий четверг, а если Покупателем, является ПАО «Казаньоргсинтез», ПАО «Нижнекамскнефтехим», АО «СИБУР-РТ» или АО «ТГК-16» или их дочерние общества - первый рабочий вторник, по истечении \",'Форма ввода'!C55,\" календарных дней, исчисляемых начиная со дня, следующего за датой заключения настоящей Спецификации.\"&\" Авансовый платеж зачитывается в счет оплаты поставленного Товара в сумме, подлежащей оплате Поставщику.\" &\" Зачет аванса производится, начиная с первого первичного документа, и по каждому следующему. \" &\"Если аванс меньше или равен сумме поставленного Товара, то аванс зачитывается в полном размере. \" &\"Если аванс превышает сумму поставленного Товара, то аванс зачитывается в полной стоимости Товара до полного зачета аванса. При перечислении денежных средств за поставленный Товар, \" &\"оплата производится за вычетом зачтенного аванса/части аванса. Если Стороны договорятся о выплате нескольких авансовых платежей,\" &\" то их зачет осуществляется методом ФИФО: последовательно в хронологическом порядке, начиная с авансов, перечисленных ранее, к авансам, перечисленным позднее.\")","v":"Оплата Товара производится Покупателем в порядке предварительной оплаты в размере 100% стоимости Товара в первый рабочий четверг, а если Покупателем, является ПАО «Казаньоргсинтез», ПАО «Нижнекамскнефтехим», АО «СИБУР-РТ» или АО «ТГК-16» или их дочерние общества - первый рабочий вторник, по истечении  календарных дней, исчисляемых начиная со дня, следующего за датой заключения настоящей Спецификации. Авансовый платеж зачитывается в счет оплаты поставленного Товара в сумме, подлежащей оплате Поставщику. Зачет аванса производится, начиная с первого первичного документа, и по каждому следующему. Если аванс меньше или равен сумме поставленного Товара, то аванс зачитывается в полном размере. Если аванс превышает сумму поставленного Товара, то аванс зачитывается в полной стоимости Товара до полного зачета аванса. При перечислении денежных средств за поставленный Товар, оплата производится за вычетом зачтенного аванса/части аванса. Если Стороны договорятся о выплате нескольких авансовых платежей, то их зачет осуществляется методом ФИФО: последовательно в хронологическом порядке, начиная с авансов, перечисленных ранее, к авансам, перечисленным позднее."},"Постоплата_исключение","Предоплата_исключение",{"$f":"CONCATENATE(\"Оплата Товара производится Покупателем в порядке предварительной оплаты  в размере 100%\",\" стоимости Товара не позднее \",TEXT(DAY('Форма ввода'!C64),\"00\")&\" \"&VLOOKUP(MONTH('Форма ввода'!C64),Справочник!$D$2:$E$13,2,0)&\" \"&YEAR('Форма ввода'!C64)&\" г.\"&\" Авансовый платеж зачитывается в счет оплаты поставленного Товара в сумме, подлежащей оплате Поставщику.\" &\" Зачет аванса производится, начиная с первого первичного документа, и по каждому следующему. \" &\"Если аванс меньше или равен сумме поставленного Товара, то аванс зачитывается в полном размере. \" &\"Если аванс превышает сумму поставленного Товара, то аванс зачитывается в полной стоимости Товара до полного зачета аванса. При перечислении денежных средств за поставленный Товар, \" &\"оплата производится за вычетом зачтенного аванса/части аванса. Если Стороны договорятся о выплате нескольких авансовых платежей,\" &\" то их зачет осуществляется методом ФИФО: последовательно в хронологическом порядке, начиная с авансов, перечисленных ранее, к авансам, перечисленным позднее.\")","v":"Оплата Товара производится Покупателем в порядке предварительной оплаты  в размере 100% стоимости Товара не позднее 00 января 1900 г. Авансовый платеж зачитывается в счет оплаты поставленного Товара в сумме, подлежащей оплате Поставщику. Зачет аванса производится, начиная с первого первичного документа, и по каждому следующему. Если аванс меньше или равен сумме поставленного Товара, то аванс зачитывается в полном размере. Если аванс превышает сумму поставленного Товара, то аванс зачитывается в полной стоимости Товара до полного зачета аванса. При перечислении денежных средств за поставленный Товар, оплата производится за вычетом зачтенного аванса/части аванса. Если Стороны договорятся о выплате нескольких авансовых платежей, то их зачет осуществляется методом ФИФО: последовательно в хронологическом порядке, начиная с авансов, перечисленных ранее, к авансам, перечисленным позднее."},null,{"$f":"CONCATENATE('Форма ввода'!C94,\" с даты ввода Товара в эксплуатацию, но не более \",'Форма ввода'!C95,\" с даты поставки Товара.\")","v":"(Выпадающий список) с даты ввода Товара в эксплуатацию, но не более (Выпадающий список) с даты поставки Товара."},"Дата получения Товара Покупателем (Грузополучателем) на складе Покупателя (Грузополучателя) (п.2), указанная в Транспортном документе.","2 месяца",{"$f":"CONCATENATE(\"В соответствии с п. 9.1  Договора  Поставщик обязуется разработать для Покупателя документацию на Товар в соответствии с требованиями Приложения № \",'Форма ввода'!C22,\" к настоящей Спецификации.\", \"\nСтоимость разработки документации включена в стоимость Товара.\",\"\nПо окончании работ по разработке Документации Поставщик одновременно с Документацией составляет и передает Покупателю акт приемки выполненных работ.\")","v":"В соответствии с п. 9.1  Договора  Поставщик обязуется разработать для Покупателя документацию на Товар в соответствии с требованиями Приложения №  к настоящей Спецификации.\nСтоимость разработки документации включена в стоимость Товара.\nПо окончании работ по разработке Документации Поставщик одновременно с Документацией составляет и передает Покупателю акт приемки выполненных работ."},"Срок разработки документации в соответствии с условиями Договора.","Количество и наименование Товара, согласованное в настоящей Спецификации.",{"$f":"CONCATENATE(\"Товар должен быть изготовлен не ранее \",TEXT(DAY('Форма ввода'!C101),\"00\")&\" \"&VLOOKUP(MONTH('Форма ввода'!C101),Справочник!$D$2:$E$13,2,0)&\" \"&YEAR('Форма ввода'!C101)&\" г. за исключением позиций \",'Форма ввода'!C102,\" таблицы п.1 настоящей Спецификации.\")","v":"Товар должен быть изготовлен не ранее 00 января 1900 г. за исключением позиций  таблицы п.1 настоящей Спецификации."},"долл.США","цент.",{"$nulls":8},3,"(Трех)"]
["ЗапСибНефтехим","ООО «ЗапСибНефтехим»","Общество с ограниченной ответственностью «Западно-Сибирский Нефтехимический комбинат» ",4,"апреля","Самовывозом со склада Поставщика(Грузоотправителя),  расположенного по адресу: ","Тюменская область, г. Тобольск, Промзона.",{"$f":"CONCATENATE(\"в течение \",'Форма ввода'!C38,\" календарных дней с даты перечисления авансового платежа, но не ранее \",TEXT(DAY('Форма ввода'!C39),\"00\")&\" \"&VLOOKUP(MONTH('Форма ввода'!C39),Справочник!$D$2:$E$13,2,0)&\" \"&YEAR('Форма ввода'!C39)&\" г.\")","v":"в течение  календарных дней с даты перечисления авансового платежа, но не ранее 00 января 1900 г."},"в рублях по курсу ЦБ РФ на дату отгрузки товара Поставщиком, которая определяется соответствующей отметкой в Транспортном документе.",null,"Частичнаяпредоплата","Предоплата_c_БГ",{"$f":"CONCATENATE(\"Оплата Товара производится Покупателем в порядке предварительной оплаты в размере 100%\",\" стоимости Товара в первый рабочий четверг, а если Покупателем, является ПАО «Казаньоргсинтез», ПАО «Нижнекамскнефтехим», АО «СИБУР-РТ» или АО «ТГК-16» или их дочерние общества - первый рабочий вторник, по истечении \",'Форма ввода'!C55,\" календарных дней, исчисляемых начиная со дня, следующего за датой предоставления банковской гарантии возврата авансового платежа, соответствующей требованиям Договора, при условии получения Покупателем подтверждения подлинности банковской гарантии.\"&\" В случае если к моменту доставки Товара Покупателю банковская гарантия возврата авансового платежа не\"&\" предоставлена, или предоставленная банковская гарантия не соответствует требованиям Договора, или подлинность банковской гарантии не подтверждена, оплата Товара производится в первый рабочий четверг,\" &\" а если Покупателем, является ПАО «Казаньоргсинтез», ПАО «Нижнекамскнефтехим», АО «СИБУР-РТ» или АО «ТГК-16» или их дочерние общества - первый рабочий вторник, по истечении \"& 'Форма ввода'!C56 &\" календарных дней, исчисляемых начиная со дня, следующего за датой поставки Товара.\"&\" Все предоставляемые по Договору банковские гарантии должны соответствовать требованиям, указанным в Положении о банковских гарантиях, доступ\" &\"  к которому предоставлен по ссылке: https://www.sibur.ru/about/SIBURs-contract-terms-and-conditions/bank_guarantees/.\" &\" \nАвансовый платеж зачитывается в счет оплаты поставленного Товара в сумме, подлежащей оплате Поставщику.\" &\"  Зачет аванса производится, начиная с первого первичного документа, и по каждому следующему.\" &\"  Если аванс меньше или равен сумме поставленного Товара, то аванс зачитывается в полном размере.\" &\"  Если аванс превышает сумму поставленного Товара, то аванс зачитывается в полной стоимости Товара до полного зачета аванса. \" &\" При перечислении денежных средств за поставленный Товар, оплата производится за вычетом зачтенного аванса/части аванса.\" &\"  Если Стороны договорятся о выплате нескольких авансовых платежей, то их зачет осуществляется методом ФИФО: последовательно в хронологическом порядке, начиная с авансов, перечисленных ранее, к авансам, перечисленным позднее.\")","v":"Оплата Товара производится Покупателем в порядке предварительной оплаты в размере 100% стоимости Товара в первый рабочий четверг, а если Покупателем, является ПАО «Казаньоргсинтез», ПАО «Нижнекамскнефтехим», АО «СИБУР-РТ» или АО «ТГК-16» или их дочерние общества - первый рабочий вторник, по истечении  календарных дней, исчисляемых начиная со дня, следующего за датой предоставления банковской гарантии возврата авансового платежа, соответствующей требованиям Договора, при условии получения Покупателем подтверждения подлинности банковской гарантии. В случае если к моменту доставки Товара Покупателю банковская гарантия возврата авансового платежа не предоставлена, или предоставленная банковская гарантия не соответствует требованиям Договора, или подлинность банковской гарантии не подтверждена, оплата Товара производится в первый рабочий четверг, а если Покупателем, является ПАО «Казаньоргсинтез», ПАО «Нижнекамскнефтехим», АО «СИБУР-РТ» или АО «ТГК-16» или их дочерние общества - первый рабочий вторник, по истечении  календарных дней, исчисляемых начиная со дня, следующего за датой поставки Товара. Все предоставляемые по Договору банковские гарантии должны соответствовать требованиям, указанным в Положении о банковских гарантиях, доступ  к которому предоставлен по ссылке: https://www.sibur.ru/about/SIBURs-contract-terms-and-conditions/bank_guarantees/. \nАвансовый платеж зачитывается в счет оплаты поставленного Товара в сумме, подлежащей оплате Поставщику.  Зачет аванса производится, начиная с первого первичного документа, и по каждому следующему.  Если аванс меньше или равен сумме поставленного Товара, то аванс зачитывается в полном размере.  Если аванс превышает сумму поставленного Товара, то аванс зачитывается в полной стоимости Товара до полного зачета аванса.  При перечислении денежных средств за поставленный Товар, оплата производится за вычетом зачтенного аванса/части аванса.  Если Стороны договорятся о выплате нескольких авансовых платежей, то их зачет осуществляется методом ФИФО: последовательно в хронологическом порядке, начиная с авансов, перечисленных ранее, к авансам, перечисленным позднее."},"Частичнаяпредоплата_исключение","Предоплата_исключение",{"$f":"CONCATENATE(\"Оплата Товара производится Покупателем в порядке предварительной оплаты в размере 100%\",\" стоимости Товара не позднее \",'Форма ввода'!$C$62,\" календарных дней, исчисляемых начиная со дня, следующего за датой заключения настоящего Дополнительного соглашения.\"&\" Авансовый платеж зачитывается в счет оплаты поставленного Товара в сумме, подлежащей оплате Поставщику.\" &\" Зачет аванса производится, начиная с первого первичного документа, и по каждому следующему. \" &\"Если аванс меньше или равен сумме поставленного Товара, то аванс зачитывается в полном размере. \" &\"Если аванс превышает сумму поставленного Товара, то аванс зачитывается в полной стоимости Товара до полного зачета аванса. При перечислении денежных средств за поставленный Товар, \" &\"оплата производится за вычетом зачтенного аванса/части аванса. Если Стороны договорятся о выплате нескольких авансовых платежей,\" &\" то их зачет осуществляется методом ФИФО: последовательно в хронологическом порядке, начиная с авансов, перечисленных ранее, к авансам, перечисленным позднее.\")","v":"Оплата Товара производится Покупателем в порядке предварительной оплаты в размере 100% стоимости Товара не позднее  календарных дней, исчисляемых начиная со дня, следующего за датой заключения настоящего Дополнительного соглашения. Авансовый платеж зачитывается в счет оплаты поставленного Товара в сумме, подлежащей оплате Поставщику. Зачет аванса производится, начиная с первого первичного документа, и по каждому следующему. Если аванс меньше или равен сумме поставленного Товара, то аванс зачитывается в полном размере. Если аванс превышает сумму поставленного Товара, то аванс зачитывается в полной стоимости Товара до полного зачета аванса. При перечислении денежных средств за поставленный Товар, оплата производится за вычетом зачтенного аванса/части аванса. Если Стороны договорятся о выплате нескольких авансовых платежей, то их зачет осуществляется методом ФИФО: последовательно в хронологическом порядке, начиная с авансов, перечисленных ранее, к авансам, перечисленным позднее."},null,null,"Дата передачи Товара Покупателю (грузополучателю) на складе Поставщика (грузоотправителя) (п.2), указанная  в Транспортном документе.","3 месяца",{"$f":"CONCATENATE(\"В соответствии с п.9.1  Договора  Поставщик обязуется разработать для Покупателя документацию на Товар, указанную в настоящей Спецификации.\nСтоимость разработки документации составляет \", 'Форма ввода'!C19,\" \",'Форма ввода'!C14, \"(\",FirstLetter(CurText('Форма ввода'!C19,'Форма ввода'!C14)),\")\",\", в том числе НДС \",TEXT('Форма ввода'!C20,\"0%\"),\" - \",ROUND('Форма ввода'!C19-'Форма ввода'!C19/(1+'Форма ввода'!C20),2),\" \",'Форма ввода'!C12,\" (\",FirstLetter(CurText(ROUND('Форма ввода'!C19-'Форма ввода'!C19/(1+'Форма ввода'!C20),2),'Форма ввода'!C14)),\")\",\n\" Стоимость разработки Документации оплачивается Покупателем в «Порядке оплаты», предусмотренном настоящей Спецификацией.\",\"\nПо окончании работ по разработке Документации Поставщик одновременно с Документацией составляет и передает Покупателю акт приемки выполненных работ.\")","v":{"$error":"#NAME?"}},"Срок разработки в соответствии с графиком.",null,{"$f":"CONCATENATE(\"Товар должен быть новым, не ранее \",YEAR('Форма ввода'!C101),\" года выпуска, не бывшим в употреблении.\")","v":"Товар должен быть новым, не ранее 1900 года выпуска, не бывшим в употреблении."},"фунт.","пенни",{"$nulls":8},4,"(Четырех)"]
["Запсибтрансгаз","ООО «Запсибтрансгаз»","Общество с ограниченной ответственностью «Запсибтрансгаз» ",5,"мая","Автомобильным транспортом Поставщика (Грузоотправителя, иного уполномоченного представителя Поставщика) на склад Покупателя (Грузополучателя) расположенный по адресу:","ХМАО-Югра, г.Нижневартовск, 13-й км Мегионской автодороги, промзона.",{"$f":"CONCATENATE(TEXT(DAY('Форма ввода'!C39),\"00\")&\" \"&VLOOKUP(MONTH('Форма ввода'!C39),Справочник!$D$2:$E$13,2,0)&\" \"&YEAR('Форма ввода'!C39)&\" г.\")","v":"00 января 1900 г."},{"$nulls":3},"Частичнаяпредоплата",{"$f":"CONCATENATE(\"Оплата Товара производится Покупателем в порядке предварительной оплаты  в размере \",TEXT('Форма ввода'!C57,\"0%\"),\" стоимости Товара в первый рабочий четверг, а если Покупателем, является ПАО «Казаньоргсинтез», ПАО «Нижнекамскнефтехим», АО «СИБУР-РТ» или АО «ТГК-16» или их дочерние общества - первый рабочий вторник, по истечении \",'Форма ввода'!C55,\" календарных дней, исчисляемых начиная со дня,  следующего за датой заключения настоящей Спецификации.\",\" Оплата Товара в размере \",TEXT('Форма ввода'!C58,\"0%\"),\" стоимости Товара производится  в первый рабочий четверг, а если Покупателем, является ПАО «Казаньоргсинтез», ПАО «Нижнекамскнефтехим», АО «СИБУР-РТ» или АО «ТГК-16» или их дочерние общества - первый рабочий вторник, по истечении \",'Форма ввода'!C56, \" календарных дней, исчисляемых начиная со дня, следующего за датой поставки Товара.\"&\" Авансовый платеж зачитывается в счет оплаты поставленного Товара в сумме, подлежащей оплате Поставщику.\" &\" Зачет аванса производится, начиная с первого первичного документа, и по каждому следующему. \" &\"Если аванс меньше или равен сумме поставленного Товара, то аванс зачитывается в полном размере. \" &\"Если аванс превышает сумму поставленного Товара, то аванс зачитывается в полной стоимости Товара до полного зачета аванса. При перечислении денежных средств за поставленный Товар, \" &\"оплата производится за вычетом зачтенного аванса/части аванса. Если Стороны договорятся о выплате нескольких авансовых платежей,\" &\" то их зачет осуществляется методом ФИФО: последовательно в хронологическом порядке, начиная с авансов, перечисленных ранее, к авансам, перечисленным позднее.\")","v":"Оплата Товара производится Покупателем в порядке предварительной оплаты  в размере 0% стоимости Товара в первый рабочий четверг, а если Покупателем, является ПАО «Казаньоргсинтез», ПАО «Нижнекамскнефтехим», АО «СИБУР-РТ» или АО «ТГК-16» или их дочерние общества - первый рабочий вторник, по истечении  календарных дней, исчисляемых начиная со дня,  следующего за датой заключения настоящей Спецификации. Оплата Товара в размере 100% стоимости Товара производится  в первый рабочий четверг, а если Покупателем, является ПАО «Казаньоргсинтез», ПАО «Нижнекамскнефтехим», АО «СИБУР-РТ» или АО «ТГК-16» или их дочерние общества - первый рабочий вторник, по истечении  календарных дней, исчисляемых начиная со дня, следующего за датой поставки Товара. Авансовый платеж зачитывается в счет оплаты поставленного Товара в сумме, подлежащей оплате Поставщику. Зачет аванса производится, начиная с первого первичного документа, и по каждому следующему. Если аванс меньше или равен сумме поставленного Товара, то аванс зачитывается в полном размере. Если аванс превышает сумму поставленного Товара, то аванс зачитывается в полной стоимости Товара до полного зачета аванса. При перечислении денежных средств за поставленный Товар, оплата производится за вычетом зачтенного аванса/части аванса. Если Стороны договорятся о выплате нескольких авансовых платежей, то их зачет осуществляется методом ФИФО: последовательно в хронологическом порядке, начиная с авансов, перечисленных ранее, к авансам, перечисленным позднее."},{"$nulls":5},"Дата получения Товара у оператора почтовой связи.","4 месяца",{"$f":"CONCATENATE(\"В соответствии с п.9.1  Договора  Поставщик обязуется разработать для Покупателя документацию на Товар в соответствии с требованиями Приложения № \",'Форма ввода'!C22,\" к настоящей Спецификации. \nСтоимость разработки документации составляет \", 'Форма ввода'!C19,\" \",'Форма ввода'!C14, \"(\",FirstLetter(CurText('Форма ввода'!C19,'Форма ввода'!C14)),\")\",\", в том числе НДС \",TEXT('Форма ввода'!C20,\"0%\"),\" - \",ROUND('Форма ввода'!C19-'Форма ввода'!C19/(1+'Форма ввода'!C20),2),\" \",'Форма ввода'!C12,\" (\",FirstLetter(CurText(ROUND('Форма ввода'!C19-'Форма ввода'!C19/(1+'Форма ввода'!C20),2),'Форма ввода'!C14)),\")\",\n\" Стоимость разработки Документации оплачивается Покупателем в «Порядке оплаты», предусмотренном настоящей Спецификацией.\",\"\nПо окончании работ по разработке Документации Поставщик одновременно с Документацией составляет и передает Покупателю акт приемки выполненных работ.\")","v":{"$error":"#NAME?"}},null,null,{"$f":"CONCATENATE(\"Товар должен быть новым, не ранее \",YEAR('Форма ввода'!C101),\" года выпуска, не бывшим в употреблении, за исключением позиций \",'Форма ввода'!C102,\" таблицы п.1 настоящей Спецификации.\")","v":"Товар должен быть новым, не ранее 1900 года выпуска, не бывшим в употреблении, за исключением позиций  таблицы п.1 настоящей Спецификации."},"евро","евроцент.",{"$nulls":8},5,"(Пяти)"]
["КОС","ПАО «Казаньоргсинтез»","Казанское публичное акционерное общество «Органический синтез»",6,"июня",null,"г. Казань, Беломорская ул., д.101.",{"$f":"CONCATENATE(\"с \", TEXT(DAY('Форма ввода'!C39),\"00\")&\" \"&VLOOKUP(MONTH('Форма ввода'!C39),Справочник!$D$2:$E$13,2,0)&\" \"&YEAR('Форма ввода'!C39)&\" г. по \",TEXT(DAY('Форма ввода'!C40),\"00\")&\" \"&VLOOKUP(MONTH('Форма ввода'!C40),Справочник!$D$2:$E$13,2,0)&\" \"&YEAR('Форма ввода'!C40)&\" г.\")","v":"с 00 января 1900 г. по 00 января 1900 г."},{"$nulls":3},"Частичнаяпредоплата_с_БГ",{"$f":"CONCATENATE(\"Оплата Товара производится Покупателем в порядке предварительной оплаты  в размере \",TEXT('Форма ввода'!C57,\"0%\"),\" стоимости Товара в первый рабочий четверг, а если Покупателем, является ПАО «Казаньоргсинтез», ПАО «Нижнекамскнефтехим», АО «СИБУР-РТ» или АО «ТГК-16» или их дочерние общества - первый рабочий вторник, по истечении \",'Форма ввода'!C55,\" календарных дней, исчисляемых начиная со дня, следующего за датой предоставления банковской гарантии возврата авансового платежа, соответствующей требованиям Договора\"&\" при условии получения Покупателем подтверждения подлинности банковской гарантии. В случае если к моменту доставки Товара Покупателю банковская гарантия\"&\" возврата авансового платежа не предоставлена, или предоставленная банковская гарантия не соответствует требованиям Договора, или подлинность банковской\"&\" гарантии не подтверждена, оплата Товара производится в порядке, предусмотренном нижеследующим абзацем.\",\" Оплата Товара в размере \",TEXT('Форма ввода'!C58,\"0%\"),\" стоимости Товара производится  в первый рабочий четверг, а если Покупателем, является ПАО «Казаньоргсинтез», ПАО «Нижнекамскнефтехим», АО «СИБУР-РТ» или АО «ТГК-16» или их дочерние общества - первый рабочий вторник, по истечении \",'Форма ввода'!C56, \" календарных дней, исчисляемых начиная со дня, следующего за датой поставки Товара.\"&\" Все предоставляемые по Договору банковские гарантии должны соответствовать требованиям, указанным в Положении о банковских гарантиях, доступ\" &\"  к которому предоставлен по ссылке: https://www.sibur.ru/about/SIBURs-contract-terms-and-conditions/bank_guarantees/.\" &\" \nАвансовый платеж зачитывается в счет оплаты поставленного Товара в сумме, подлежащей оплате Поставщику.\" &\"  Зачет аванса производится, начиная с первого первичного документа, и по каждому следующему.\" &\"  Если аванс меньше или равен сумме поставленного Товара, то аванс зачитывается в полном размере.\" &\"  Если аванс превышает сумму поставленного Товара, то аванс зачитывается в полной стоимости Товара до полного зачета аванса. \" &\" При перечислении денежных средств за поставленный Товар, оплата производится за вычетом зачтенного аванса/части аванса.\" &\"  Если Стороны договорятся о выплате нескольких авансовых платежей, то их зачет осуществляется методом ФИФО: последовательно в хронологическом порядке, начиная с авансов, перечисленных ранее, к авансам, перечисленным позднее.\")","v":"Оплата Товара производится Покупателем в порядке предварительной оплаты  в размере 0% стоимости Товара в первый рабочий четверг, а если Покупателем, является ПАО «Казаньоргсинтез», ПАО «Нижнекамскнефтехим», АО «СИБУР-РТ» или АО «ТГК-16» или их дочерние общества - первый рабочий вторник, по истечении  календарных дней, исчисляемых начиная со дня, следующего за датой предоставления банковской гарантии возврата авансового платежа, соответствующей требованиям Договора при условии получения Покупателем подтверждения подлинности банковской гарантии. В случае если к моменту доставки Товара Покупателю банковская гарантия возврата авансового платежа не предоставлена, или предоставленная банковская гарантия не соответствует требованиям Договора, или подлинность банковской гарантии не подтверждена, оплата Товара производится в порядке, предусмотренном нижеследующим абзацем. Оплата Товара в размере 100% стоимости Товара производится  в первый рабочий четверг, а если Покупателем, является ПАО «Казаньоргсинтез», ПАО «Нижнекамскнефтехим», АО «СИБУР-РТ» или АО «ТГК-16» или их дочерние общества - первый рабочий вторник, по истечении  календарных дней, исчисляемых начиная со дня, следующего за датой поставки Товара. Все предоставляемые по Договору банковские гарантии должны соответствовать требованиям, указанным в Положении о банковских гарантиях, доступ  к которому предоставлен по ссылке: https://www.sibur.ru/about/SIBURs-contract-terms-and-conditions/bank_guarantees/. \nАвансовый платеж зачитывается в счет оплаты поставленного Товара в сумме, подлежащей оплате Поставщику.  Зачет аванса производится, начиная с первого первичного документа, и по каждому следующему.  Если аванс меньше или равен сумме поставленного Товара, то аванс зачитывается в полном размере.  Если аванс превышает сумму поставленного Товара, то аванс зачитывается в полной стоимости Товара до полного зачета аванса.  При перечислении денежных средств за поставленный Товар, оплата производится за вычетом зачтенного аванса/части аванса.  Если Стороны договорятся о выплате нескольких авансовых платежей, то их зачет осуществляется методом ФИФО: последовательно в хронологическом порядке, начиная с авансов, перечисленных ранее, к авансам, перечисленным позднее."},null,"Частичнаяпредоплата_исключение",{"$f":"CONCATENATE(\"Оплата Товара производится Покупателем в порядке предварительной оплаты  в размере \",TEXT('Форма ввода'!$C$66,\"0%\"),\" стоимости Товара  не позднее \",TEXT(DAY('Форма ввода'!C64),\"00\")&\" \"&VLOOKUP(MONTH('Форма ввода'!C64),Справочник!$D$2:$E$13,2,0)&\" \"&YEAR('Форма ввода'!C64)&\" г.\",\n\"\nОплата Товара в размере \",TEXT('Форма ввода'!$C$67,\"0%\"),\" стоимости Товара производится Покупателем не позднее \",'Форма ввода'!$C$63,\" календарных дней, исчисляемых начиная со дня, следующего за датой поставки Товара.\"&\" Авансовый платеж зачитывается в счет оплаты поставленного Товара в сумме, подлежащей оплате Поставщику.\" &\" Зачет аванса производится, начиная с первого первичного документа, и по каждому следующему. \" &\"Если аванс меньше или равен сумме поставленного Товара, то аванс зачитывается в полном размере. \" &\"Если аванс превышает сумму поставленного Товара, то аванс зачитывается в полной стоимости Товара до полного зачета аванса. При перечислении денежных средств за поставленный Товар, \" &\"оплата производится за вычетом зачтенного аванса/части аванса. Если Стороны договорятся о выплате нескольких авансовых платежей,\" &\" то их зачет осуществляется методом ФИФО: последовательно в хронологическом порядке, начиная с авансов, перечисленных ранее, к авансам, перечисленным позднее.\")","v":"Оплата Товара производится Покупателем в порядке предварительной оплаты  в размере 0% стоимости Товара  не позднее 00 января 1900 г.\nОплата Товара в размере 100% стоимости Товара производится Покупателем не позднее  календарных дней, исчисляемых начиная со дня, следующего за датой поставки Товара. Авансовый платеж зачитывается в счет оплаты поставленного Товара в сумме, подлежащей оплате Поставщику. Зачет аванса производится, начиная с первого первичного документа, и по каждому следующему. Если аванс меньше или равен сумме поставленного Товара, то аванс зачитывается в полном размере. Если аванс превышает сумму поставленного Товара, то аванс зачитывается в полной стоимости Товара до полного зачета аванса. При перечислении денежных средств за поставленный Товар, оплата производится за вычетом зачтенного аванса/части аванса. Если Стороны договорятся о выплате нескольких авансовых платежей, то их зачет осуществляется методом ФИФО: последовательно в хронологическом порядке, начиная с авансов, перечисленных ранее, к авансам, перечисленным позднее."},null,null,"Дата, определяемая в соответствии с п. 14 настоящей Спецификации.","5 месяцев",{"$nulls":4},"франк.","сант.",{"$nulls":8},6,"(Шести)"]
["КЗСК","АО «КЗСК»","Акционерное общество «Красноярский завод синтетического каучука»",7,"июля",null,"г. Красноярск, пер. Каучуковый, д. 6.",{"$f":"CONCATENATE(TEXT(DAY('Форма ввода'!C39),\"00\")&\" \"&VLOOKUP(MONTH('Форма ввода'!C39),Справочник!$D$2:$E$13,2,0)&\" \"&YEAR('Форма ввода'!C39)&\" г., при условии подписания настоящей Спецификации обеими сторонами до \",TEXT(DAY('Форма ввода'!C41),\"00\")&\" \"&VLOOKUP(MONTH('Форма ввода'!C41),Справочник!$D$2:$E$13,2,0)&\" \"&YEAR('Форма ввода'!C41)&\" г., в случае подписания настоящей Спецификации последней из сторон позднее \",TEXT(DAY('Форма ввода'!C41),\"00\")&\" \"&VLOOKUP(MONTH('Форма ввода'!C41),Справочник!$D$2:$E$13,2,0)&\" \"&YEAR('Форма ввода'!C41)&\" г., срок поставки Товара увеличивается на количество календарных дней соответствующее количеству календарных дней задержки подписания спецификации последней из сторон.\")","v":"00 января 1900 г., при условии подписания настоящей Спецификации обеими сторонами до 00 января 1900 г., в случае подписания настоящей Спецификации последней из сторон позднее 00 января 1900 г., срок поставки Товара увеличивается на количество календарных дней соответствующее количеству календарных дней задержки подписания спецификации последней из сторон."},{"$nulls":11},"6 месяцев",{"$nulls":4},"юан.","цзяо",{"$nulls":8},7,"(Семи)"]
["КЦО СИБУР-Юг","ООО «КЦО СИБУР-Юг»","Общество с ограниченной ответственностью «Корпоративный центр Оздоровления СИБУР-Юг» ",8,"августа",null,"Краснодарский край, Анапский р-он, г. Анапа, Пионерский проспект, д. 255.","согласно графику, являющемуся Приложением №1 к настоящей Спецификации.",{"$nulls":6},"Частичнаяпредоплата_исключение",{"$f":"CONCATENATE(\"Оплата Товара производится Покупателем в порядке предварительной оплаты в размере \",TEXT('Форма ввода'!$C$66,\"0%\"),\" стоимости Товара не позднее \",'Форма ввода'!$C$62,\" календарных дней, исчисляемых начиная со дня, следующего за датой заключения настоящего Дополнительного соглашения.\n\",\n\"Оплата Товара в размере \",TEXT('Форма ввода'!$C$67,\"0%\"),\" стоимости Товара производится Покупателем не позднее \",'Форма ввода'!$C$63,\" календарных дней, исчисляемых начиная со дня, следующего за датой поставки Товара.\"&\" Авансовый платеж зачитывается в счет оплаты поставленного Товара в сумме, подлежащей оплате Поставщику.\" &\" Зачет аванса производится, начиная с первого первичного документа, и по каждому следующему. \" &\"Если аванс меньше или равен сумме поставленного Товара, то аванс зачитывается в полном размере. \" &\"Если аванс превышает сумму поставленного Товара, то аванс зачитывается в полной стоимости Товара до полного зачета аванса. При перечислении денежных средств за поставленный Товар, \" &\"оплата производится за вычетом зачтенного аванса/части аванса. Если Стороны договорятся о выплате нескольких авансовых платежей,\" &\" то их зачет осуществляется методом ФИФО: последовательно в хронологическом порядке, начиная с авансов, перечисленных ранее, к авансам, перечисленным позднее.\")","v":"Оплата Товара производится Покупателем в порядке предварительной оплаты в размере 0% стоимости Товара не позднее  календарных дней, исчисляемых начиная со дня, следующего за датой заключения настоящего Дополнительного соглашения.\nОплата Товара в размере 100% стоимости Товара производится Покупателем не позднее  календарных дней, исчисляемых начиная со дня, следующего за датой поставки Товара. Авансовый платеж зачитывается в счет оплаты поставленного Товара в сумме, подлежащей оплате Поставщику. Зачет аванса производится, начиная с первого первичного документа, и по каждому следующему. Если аванс меньше или равен сумме поставленного Товара, то аванс зачитывается в полном размере. Если аванс превышает сумму поставленного Товара, то аванс зачитывается в полной стоимости Товара до полного зачета аванса. При перечислении денежных средств за поставленный Товар, оплата производится за вычетом зачтенного аванса/части аванса. Если Стороны договорятся о выплате нескольких авансовых платежей, то их зачет осуществляется методом ФИФО: последовательно в хронологическом порядке, начиная с авансов, перечисленных ранее, к авансам, перечисленным позднее."},{"$nulls":3},"7 месяцев",{"$nulls":4},"иен.","сен.",{"$nulls":8},8,"(Восеми)"]
["Нижнекамскнефтехим","ПАО \"Нижнекамскнефтехим\"","Публичное Акционерное Общество «Нижнекамскнефтехим»",9,"сентября",null,"Республика Татарстан, Нижнекамский р-н, г. Нижнекамск, ул. Соболевская, здание 23.",{"$nulls":12},"8 месяцев",{"$nulls":14},9,"(Девяти)"]
["НИПИгазпереработка","АО «НИПИгаз»","Акционерное общество «НИПИгазпереработка»",10,"октября",null,"г. Томск, Кузовлевский тракт, д. 2, стр. 270.",{"$nulls":12},"9 месяцев",{"$nulls":14},10,"(Десяти)"]
["ПОЛИЭФ","АО «ПОЛИЭФ»","Акционерное общество «ПОЛИЭФ»",11,"ноября",null,"г. Краснодар, ул. Красная.",{"$nulls":12},"10 месяцев",{"$nulls":14},11,"(Одиннадцати)"]
["ПОРТЭНЕРГО","ООО \"ПОРТЭНЕРГО\"","Общество с ограниченной ответственностью «ПОРТЭНЕРГО»",12,"декабря",null,"Республика Башкортостан, г. Благовещенск, ул. Социалистическая, д. 71.",{"$nulls":12},"11 месяцев",{"$nulls":14},12,"(Двенадцати)"]
["СИБУР","ООО «СИБУР»","Общество с ограниченной ответственностью «СИБУР» ",{"$nulls":16},"12 месяцев",{"$nulls":14},13,"(Тринадцати)"]
["СИБУР Диджитал","ООО \"СИБУР Диджитал\"","Общество с ограниченной ответственностью «СИБУР Диджитал»",{"$nulls":16},"13 месяцев",{"$nulls":14},14,"(Четырнадцати)"]
["СИБУР КОННЕКТ","ООО «СИБУР КОННЕКТ»","Общество с ограниченной ответственностью «СИБУР КОННЕКТ»",{"$nulls":3},"г. Томск, Кузовлевский тракт, д. 2, стр. 238.",{"$nulls":12},"14 месяцев",{"$nulls":14},15,"(Пятнадцати)"]
["НИПИГАЗ-Актив","ООО «НИПИГАЗ-Актив»","Общество с ограниченной ответственностью «НИПИГАЗ-Актив»",{"$nulls":16},"15 месяцев",{"$nulls":14},16,"(Шестнадцати)"]
["СИБУР ПОЛИЛАБ","ООО \"СИБУР ПОЛИЛАБ\"","Общество с ограниченной ответственностью «СИБУР ПОЛИЛАБ»",{"$nulls":16},"16 месяцев",{"$nulls":14},17,"(Семнадцати)"]
["СИБУР Холдинг","ПАО «СИБУР Холдинг»","Публичное акционерное общество «СИБУР Холдинг» ",{"$nulls":3},"г. Москва, тер. Сколково Инновационного Центра, б-р Большой, д. 2.",{"$nulls":12},"17 месяцев",{"$nulls":14},18,"(Восемнадцати)"]
["СИБУР-Кстово","ООО «СИБУР-Кстово»","Общество с ограниченной ответственностью «СИБУР-Кстово»",{"$nulls":16},"18 месяцев",{"$nulls":14},19,"(Девятнадцати)"]
["Сибур-Нефтехим","АО «Сибур-Нефтехим»","Акционерное общество «Сибур-Нефтехим»",{"$nulls":3},"Нижегородская область, г. Кстово, пр. 4-й (Промышленный р-н), дом № 2.",{"$nulls":12},"19 месяцев",{"$nulls":14},20,"(Двадцати)"]
["Сибур-ПЭТФ","АО «Сибур-ПЭТФ»","Акционерное общество «Сибур-ПЭТФ»",{"$nulls":3},"Нижегородская область, г. Дзержинск, Автозаводское шоссе, д. 65.",{"$nulls":12},"20 месяцев",{"$nulls":14},21,"(Двадцати одного)"]
["СИБУР-РТ","АО «СИБУР-РТ»","Акционерное общество «СИБУР-РТ»",{"$nulls":3},"г.Тверь, Московское шоссе, д.20Х.",{"$nulls":12},"21 месяц",{"$nulls":14},22,"(Двадцати двух)"]
["СибурТюменьГаз","АО «СибурТюменьГаз»","Акционерное общество «СибурТюменьГаз»",{"$nulls":16},"22 месяца",{"$nulls":14},23,"(Двадцати трех)"]
["Сибур-Химпром","АО «Сибур-Химпром»","Акционерное общество «Сибур-Химпром»",{"$nulls":3},"Ленинградская обл., р-н Кингисеппский, пос. Усть-Лужское, южный район морского порта Усть-Луга, квартал 4.3, д. 1.",{"$nulls":12},"23 месяца",{"$nulls":14},24,"(Двадцати четырех)"]
["СИБУР-ЦСПО","ООО «СИБУР-ЦСПО»","Общество с ограниченной ответственностью «СИБУР ЦЕНТР СИНТЕЗА ПОЛИОЛЕФИНОВ»",{"$nulls":16},"24 месяца",{"$nulls":14},25,"(Двадцати пяти)"]
["Сибурэнергоменеджмент","АО «Сибурэнергоменеджмент»","Акционерное общество «Сибурэнергоменеджмент»",{"$nulls":16},"25 месяцев",{"$nulls":14},26,"(Двадцати шести)"]
["СНХК","ООО «СНХК»","Общество с ограниченной ответственностью «Салаватский Нефтехимический Комплекс»",{"$nulls":3},"г. Нижний Новгород, Мотальный переулок, 8 - Бугров Бизнес Парк, корпус А.",{"$nulls":12},"26 месяцев",{"$nulls":14},27,"(Двадцати семи)"]
["СпецТрансОператор","АО «СпецТрансОператор»","Акционерное общество «СпецТрансОператор»",{"$nulls":3},"Республика Башкортостан, г. Салават, Молодогвардейцев 30.",{"$nulls":12},"27 месяцев",{"$nulls":14},28,"(Двадцати восеми)"]
["Томскнефтехим","ООО «Томскнефтехим»","Общество с ограниченной ответственностью «Томскнефтехим»",{"$nulls":16},"28 месяцев",{"$nulls":14},29,"(Двадцати девяти)"]
["УК Портэнерго","ООО «УК Портэнерго»","Общество с ограниченной ответственностью «Управляющая Компания Портэнерго»",{"$nulls":3},"г. Томск, Кузовлевский тракт, д. 2, стр.202.",{"$nulls":12},"29 месяцев",{"$nulls":14},30,"(Тридцати)"]
["УЭТП-НКНХ","ООО «УЭТП-НКНХ»","Общество с ограниченной ответственностью «Управление этиленопроводов-Нижнекамскнефтехим»",{"$nulls":3},"Ленинградская обл., Кингисеппский р-н, Усть-Лужское пос., южный район морского порта Усть-Луга, квартал 4.3, д. 1.",{"$nulls":12},"30 месяцев",{"$nulls":14},31,"(Тридцати одного)"]
["ФК Нефтехимик","ООО «ФК «Нефтехимик»»","Общество с ограниченной ответственностью «Футбольный клуб «Нефтехимик»»",{"$nulls":16},"31 месяц",{"$nulls":14},32,"(Тридцати двух)"]
["ХК Нефтехимик","ООО «ХК «Нефтехимик»»","Общество с ограниченной ответственностью «Хоккейный клуб «Нефтехимик»»",{"$nulls":16},"32 месяца",{"$nulls":14},33,"(Тридцати трех)"]
["ТСНХРС","ООО трест «ТСНХРС»","Общество с ограниченной ответственностью трест «Татспецнефтехимремстрой»",{"$nulls":16},"33 месяца",{"$nulls":14},34,"(Тридцати четырех)"]
["СОВ-НКНХ","АО «СОВ-НКНХ»","Акционерное общество \"Станция очистки воды - Нижнекамскнефтехим",{"$nulls":16},"34 месяца",{"$nulls":14},35,"(Тридцати пяти)"]
["УСК Нефтехимик","УСК «Нефтехимик» ПАО «НКНХ»","Учреждение спортивный клуб «Нефтехимик» ПАО «Нижнекамскнефтехим»",{"$nulls":16},"35 месяцев",{"$nulls":14},36,"(Тридцати шести)"]
["КР-НКНХ","ООО «КР-НКНХ»","Общество с ограниченной ответственностью «Корабельная роща - Нижнекамскнефтехим»",{"$nulls":16},"36 месяцев",{"$nulls":14},37,"(Тридцати семи)"]
["Транскама","НАО «Транскама»","Непубличное акционерное общество \"Транскама\"",{"$nulls":16},"37 месяцев",{"$nulls":14},38,"(Тридцати восеми)"]
["РусВинил","ООО «РусВинил»","Общество с ограниченной ответственностью «РусВинил»   ",{"$nulls":16},"38 месяцев",{"$nulls":14},39,"(Тридцати девяти)"]
["СИБУР Инновации","ООО «СИБУР Инновации»","Общество с ограниченной ответственностью «СИБУР Инновации»",{"$nulls":3},"Нижегородская область, Кстовский район, г. Кстово, мкр. Западный, квартал РусВинил",{"$nulls":12},"39 месяцев",{"$nulls":14},40,"(Сорока)"]
["АГХК","ООО \"АМУРСКИЙ ГХК\"","Общество с ограниченной ответственностью «АМУРСКИЙ ГАЗОХИМИЧЕСКИЙ КОМПЛЕКС»",{"$nulls":3},"117218, г. Москва, ул. Кржижановского, д. 6, к.3",{"$nulls":12},"40 месяцев",{"$nulls":14},41,"(Сорока одного)"]
["Белозерный ГПЗ","Белозерный ГПЗ"," Филиал Акционерного общества\"СибурТюменьГаз\"-«Белозерный газоперерабатывающий завод»",{"$nulls":3},"ХМАО-Югра, Нижневартовский район, 62-й км автодороги Нижневартовск-Радужный.\nВремя работы склада с понедельника по четверг  08:00-16:00. в Пятницу - 08:00 - 10-30 (!); суббота и воскресенье - выходной.",{"$nulls":12},"41 месяц",{"$nulls":14},42,"(Сорока двух)"]
["Белозерный ГПК","ООО «Белозерный ГПК»","Общество с ограниченной ответственностью «Белозерный Газоперерабатывающий Комплекс»",{"$nulls":3},"Ханты-Мансийский Автономный округ - Югра, г. Нижневартовск, ул. Омская, д. 1.",{"$nulls":12},"42 месяца",{"$nulls":14},43,"(Сорока трех)"]
["БИАКСПЛЕН, Курск\n","Курский филиал ООО «БИАКСПЛЕН»","Общество с ограниченной ответственностью «БИАКСПЛЕН» Курский филиал",{"$nulls":3},"г. Курск, ул. Объездная, д. 10.",{"$nulls":12},"43 месяца",{"$nulls":14},44,"(Сорока четырех)"]
["БИАКСПЛЕН, Железнодорожный","Железнодорожненский филиал ООО «БИАКСПЛЕН»","Общество с ограниченной ответственностью «БИАКСПЛЕН» Железнодорожненский филиал",{"$nulls":3},"Московская облать, г. Балашиха, микрорайон «Саввино\" ул. Промышленная, д.35.",{"$nulls":12},"44 месяца",{"$nulls":14},45,"(Сорока пяти)"]
["БИАКСПЛЕН, Новокуйбышевск","Новокуйбышевский филиал ООО «БИАКСПЛЕН»","Общество с ограниченной ответственностью «БИАКСПЛЕН» Новокуйбышевский филиал",{"$nulls":3},"Самарская область, городской округ Новокуйбышевск,  г. Новокуйбышевск, проезд Железнодорожный, д. 1.",{"$nulls":12},"45 месяцев",{"$nulls":14},46,"(Сорока шести)"]
["Вынгапуровский ГПЗ","Вынгапуровский ГПЗ","\"Вынгапуровский газоперерабатывающий завод\" - Филиал Акционерного общества «СибурТюменьГаз»",{"$nulls":3}," ЯНАО, Пуровский район, Вынгапуровское месторождение, 91-й км Вынгапуровского шоссе.\nВремя работы склада с понедельника по четверг  08:00-16:00. в Пятницу - 08:00 - 10-30 (!); суббота и воскресенье - выходной.",{"$nulls":12},"46 месяцев",{"$nulls":14},47,"(Сорока семи)"]
["Губкинский  ГПЗ","Губкинский  ГПЗ","\"Губкинский газоперерабатывающий завод\" - Филиал Акционерного общества «СибурТюменьГаз»",{"$nulls":3},"629830, РФ, ЯНАО, г.Губкинский, промзона.\nВремя работы склада с понедельника по четверг  08:00-16:00. в Пятницу - 08:00 - 10-30 (!); суббота и воскресенье - выходной.",{"$nulls":12},"47 месяцев",{"$nulls":14},48,"(Сорока восеми)"]
["ИТ-Сервис","ООО «ИТ-Сервис»","Общество с ограниченной ответственностью «ИТ-Сервис» ",{"$nulls":16},"48 месяцев",{"$nulls":14},49,"(Сорока девяти)"]
["Лахтинские газопроводы ","ООО «Лахтинские газопроводы »","Общество с ограниченной ответственностью «Лахтинские газопроводы»",{"$nulls":16},"49 месяцев",{"$nulls":14},50,"(Пятидесяти)"]
["Муравленковский ГПЗ","Муравленковский ГПЗ","\"Муравленковский газоперерабатывающий завод\" - Филиал Акционерного общества «СибурТюменьГаз»",{"$nulls":3},"629850, РФ, ЯНАО, г.Муравленко, Суторминское месторождение, Пуровский район.\nТребуется заявка на пропуск через пост Газпромнефть-ННГ  за 3 р/дня до поставки (пн-чт до 17:00, пт до 11:00) ",{"$nulls":12},"50 месяцев",{"$nulls":14},51,"(Пятидесяти одного)"]
["Нижневартовский ГПЗ","Нижневартовский ГПЗ","Филиал Акционерного общества «СибурТюменьГаз» -\"Нижневартовский газоперерабатывающий завод\"",{"$nulls":3},"628606, РФ, ХМАО-Югра, г.Нижневартовск\nВремя работы склада с понедельника по четверг  08:00-16:00. в Пятницу - 08:00 - 10-30 (!); суббота и воскресенье - выходной.",{"$nulls":12},"51 месяц",{"$nulls":14},52,"(Пятидесяти двух)"]
["НПП Нефтехимия","ООО «НПП Нефтехимия»","Общество с ограниченной ответственностью «Научно-Производственное Предприятие Нефтехимия» ",{"$nulls":3},"109429, г. Москва, г. Москва, Капотня 2-й квартал 1-36",{"$nulls":12},"52 месяца",{"$nulls":14},53,"(Пятидесяти трех)"]
["Няганьгазпереработка","Няганьгазпереработка","Филиал Акционерного общества «СибурТюменьГаз» - «Няганьгазпереработка»",{"$nulls":3},"628183, а/о Ханты-Мансийский Автономный округ - Югра, г. Нягань, 29 км а/д Нягань-Талинка, стр. 39",{"$nulls":12},"53 месяца",{"$nulls":14},54,"(Пятидесяти четырех)"]
["Пластик-Геосинтетика","ООО «Пластик-Геосинтетика»","Общество с ограниченной ответственностью «Пластик-Геосинтетика» ",{"$nulls":16},"54 месяца",{"$nulls":14},55,"(Пятидесяти пяти)"]
["Полиом","ООО «Полиом»","Общество с ограниченной ответственностью «Омский Завод Полипропилена» ",{"$nulls":3},"644035, обл. Омская, г. Омск, тракт Красноярский стр. 137",{"$nulls":12},"55 месяцев",{"$nulls":14},56,"(Пятидесяти шести)"]
["РЦ СТГ","РЦ СТГ","Региональный центр обеспечения производства-филиал Акционерного общества «СибурТюменьГаз»",{"$nulls":3},"628616, а/о Ханты-Мансийский Автономный округ - Югра, г. Нижневартовск, 13-й км Мегионской дороги",{"$nulls":12},"56 месяцев",{"$nulls":14},57,"(Пятидесяти семи)"]
["Сибгазполимер","АО «Сибгазполимер»","Акционерное общество «Сибгазполимер»",{"$nulls":16},"57 месяцев",{"$nulls":14},58,"(Пятидесяти восеми)"]
["СИБУР ГЕОСИНТ","ООО «СИБУР ГЕОСИНТ»","Общество с ограниченной ответственностью «СИБУР ГЕОСИНТ»",{"$nulls":3},"117218, г. Москва, ул. Кржижановского, д. 16, корп. 1",{"$nulls":12},"58 месяцев",{"$nulls":14},59,"(Пятидесяти девяти)"]
["СИБУР ТЦРПП","ООО «СИБУР ТЦРПП»","Общество с ограниченной ответственностью «СИБУР Технический Центр по Развитию и Переработке Полиолефинов»",{"$nulls":3},"121205, Москва.",{"$nulls":12},"59 месяцев",{"$nulls":14},60,"(Шестидесяти)"]
["СИБУР-Транс","АО «СИБУР-Транс»","Акционерное общество «СИБУР-Транс»",{"$nulls":3},"117997, г. Москва, ул. Кржижановского, д. 18, к.4",{"$nulls":12},"60 месяцев",{"$nulls":14},61,"(Шестидесяти одного)"]
["СИБУР-ЦОБ","ООО «СИБУР-ЦОБ»","Общество с ограниченной ответственностью «СИБУР-Центр Обслуживания Бизнеса»",{"$nulls":3},"603140, г. Нижний Новгород, Мотальный переулок, 8 - Бугров Бизнес Парк, корпус А",{"$nulls":12},"61 месяц",{"$nulls":14},62,"(Шестидесяти двух)"]
["СОИР","ООО «СОИР»","Общество с ограниченной ответственностью «СОИР»",{"$nulls":16},"62 месяца",{"$nulls":14},63,"(Шестидесяти трех)"]
["СПГ НОВАИНЖИНИРИНГ","ООО «СПГ НОВАИНЖИНИРИНГ»","Общество с ограниченной ответственностью «СПГ НОВАИНЖИНИРИНГ»",{"$nulls":16},"63 месяца",{"$nulls":14},64,"(Шестидесяти четырех)"]
["Южно-Балыкский ГПЗ","Южно-Балыкский ГПЗ","«Южно-Балыкский газоперерабатывающий завод» - Филиал Акционерного общества «СибурТюменьГаз»",{"$nulls":3},"628387, а/о Ханты-Мансийский Автономный округ - Югра, г. Пыть-Ях, микрорайон №7, д. 7А",{"$nulls":12},"64 месяца",{"$nulls":14},65,"(Шестидесяти пяти)"]
["Южно-Приобский ГПЗ","ООО «Южно-Приобский ГПЗ»","Общество с ограниченной ответственностью «Южно-Приобский Газоперерабатывающий Завод»",{"$nulls":3},"628012, а/о Ханты-Мансийский Автономный округ - Югра, г. Ханты-Мансийск, ул. Мира, д. 149",{"$nulls":12},"65 месяцев",{"$nulls":14},66,"(Шестидесяти шести)"]
["АГХК","ООО \"АМУРСКИЙ ГХК\"","Общество с ограниченной ответственностью «АМУРСКИЙ ГАЗОХИМИЧЕСКИЙ КОМПЛЕКС»",{"$nulls":16},"66 месяцев",{"$nulls":14},67,"(Шестидесяти семи)"]
[{"$nulls":19},"67 месяцев",{"$nulls":14},68,"(Шестидесяти восеми)"]
[{"$nulls":19},"68 месяцев",{"$nulls":14},69,"(Шестидесяти девяти)"]
[{"$nulls":19},"69 месяцев",{"$nulls":14},70,"(Семидесяти)"]
[{"$nulls":19},"70 месяцев",{"$nulls":14},71,"(Семидесяти одного)"]
[{"$nulls":19},"71 месяц",{"$nulls":14},72,"(Семидесяти двух)"]
[{"$nulls":19},"72 месяца",{"$nulls":14},73,"(Семидесяти трех)"]
[{"$nulls":19},"73 месяца",{"$nulls":14},74,"(Семидесяти четырех)"]
[{"$nulls":19},"74 месяца",{"$nulls":14},75,"(Семидесяти пяти)"]
[{"$nulls":19},"75 месяцев",{"$nulls":14},76,"(Семидесяти шести)"]
[{"$nulls":19},"76 месяцев",{"$nulls":14},77,"(Семидесяти семи)"]
[{"$nulls":19},"77 месяцев",{"$nulls":14},78,"(Семидесяти восеми)"]
[{"$nulls":19},"78 месяцев",{"$nulls":14},79,"(Семидесяти девяти)"]
[{"$nulls":19},"79 месяцев",{"$nulls":14},80,"(Восьмидесяти)"]
[{"$nulls":19},"80 месяцев",{"$nulls":14},81,"(Восьмидесяти одного)"]
[{"$nulls":19},"81 месяц",{"$nulls":14},82,"(Восьмидесяти двух)"]
[{"$nulls":19},"82 месяца",{"$nulls":14},83,"(Восьмидесяти трех)"]
[{"$nulls":19},"83 месяца",{"$nulls":14},84,"(Восьмидесяти четырех)"]
[{"$nulls":19},"84 месяца",{"$nulls":14},85,"(Восьмидесяти пяти)"]
[{"$nulls":19},"85 месяцев",{"$nulls":14},86,"(Восьмидесяти шести)"]
[{"$nulls":19},"86 месяцев",{"$nulls":14},87,"(Восьмидесяти семи)"]
[{"$nulls":19},"87 месяцев",{"$nulls":14},88,"(Восьмидесяти восеми)"]
[{"$nulls":19},"88 месяцев",{"$nulls":14},89,"(Восьмидесяти девяти)"]
[{"$nulls":19},"89 месяцев",{"$nulls":14},90,"(Девяноста)"]
[{"$nulls":19},"90 месяцев",{"$nulls":14},91,"(Девяноста одного)"]
[{"$nulls":19},"91 месяц",{"$nulls":14},92,"(Девяноста двух)"]
[{"$nulls":19},"92 месяца",{"$nulls":14},93,"(Девяноста трех)"]
[{"$nulls":19},"93 месяца",{"$nulls":14},94,"(Девяноста четырех)"]
[{"$nulls":19},"94 месяца",{"$nulls":14},95,"(Девяноста пяти)"]
[{"$nulls":19},"95 месяцев",{"$nulls":14},96,"(Девяноста шести)"]
[{"$nulls":19},"96 месяцев",{"$nulls":14},97,"(Девяноста семи)"]
[{"$nulls":19},"97 месяцев",{"$nulls":14},98,"(Девяноста восеми)"]
[{"$nulls":19},"98 месяцев",{"$nulls":14},99,"(Девяноста девяти)"]
[{"$nulls":19},"99 месяцев",{"$nulls":14},100,"(Ста)"]
[{"$nulls":19},"100 месяцев"]